Workbook

Sheet Примерное меню
A1: Согласовано: | M1: Утверждаю:
M2: Директор ООО "Эдем"
A4: ______________________ | M4: _____________Г. Т. Сафина
A6: Примерное двухнедельное меню рационов горячего питания в общеобразовательных учреждениях
A8: № рец. | B8: Приём пищи/ Наименование блюд | C8: Масса порций, в гр. | E8: Пищевые вещества (г) | K8: Энергетическая ценность (ккал) | M8: Витамины (мг) | U8: Минеральные вещества (мг)
E9: Белки | G9: Жиры | I9: Углеводы | M9: А | O9: В1 | Q9: В2 | S9: С | U9: Ca | W9: P | Y9: Mg | AA9: Fe
C10: 7-11 лет | D10: 12-18 лет | E10: 7-11 лет | F10: 12-18 лет | G10: 7-11 лет | H10: 12-18 лет | I10: 7-11 лет | J10: 12-18 лет | K10: 7-11 лет | L10: 12-18 лет | M10: 7-11 лет | N10: 12-18 лет | O10: 7-11 лет | P10: 12-18 лет | Q10: 7-11 лет | R10: 12-18 лет | S10: 7-11 лет | T10: 12-18 лет | U10: 7-11 лет | V10: 12-18 лет | W10: 7-11 лет | X10: 12-18 лет | Y10: 7-11 лет | Z10: 12-18 лет | AA10: 7-11 лет | AB10: 12-18 лет
B11: День 1 / Понедельник
B12: Завтрак
A13: №338 | B13: Фрукт | C13: 200 | D13: 200 | E13: 0.52 | F13: 0.52 | G13: 0.34 | H13: 0.34 | I13: 28.82 | J13: 28.82 | K13: 104 | L13: 104 | M13: 0 | N13: 0 | O13: 0.05 | P13: 0.05 | Q13: 0.03 | R13: 0.03 | S13: 20.8 | T13: 20.8 | U13: 25.6 | V13: 25.6 | W13: 0.02 | X13: 0.02 | Y13: 30.4 | Z13: 30.4 | AA13: 1.5 | AB13: 1.5
A14: №173 | B14: Каша молочная геркулесовая со сливочным маслом | C14: 200/5/10 | D14: 200/5/10 | E14: 5.8 | F14: 5.8 | G14: 5.7 | H14: 5.7 | I14: 18.26 | J14: 18.26 | K14: 206 | L14: 206 | M14: 0.05 | N14: 0.05 | O14: 0.23 | P14: 0.23 | Q14: 0.24 | R14: 0.24 | S14: 1.3 | T14: 1.3 | U14: 331.5 | V14: 331.5 | W14: 327.1 | X14: 327.1 | Y14: 54.5 | Z14: 54.5 | AA14: 2.11 | AB14: 2.11
A15: №408 | B15: Перемяч с мясом | C15: 60 | D15: 60 | E15: 5.73 | F15: 5.73 | G15: 8.17 | H15: 8.17 | I15: 21.84 | J15: 21.84 | K15: 192 | L15: 192 | M15: 0.003 | N15: 0.003 | O15: 0.07 | P15: 0.07 | Q15: 0.057 | R15: 0.057 | S15: 0.678 | T15: 0.678 | U15: 0 | V15: 0 | W15: 76.62 | X15: 76.62 | Y15: 11.58 | Z15: 11.58 | AA15: 1.01 | AB15: 1.01
B16: Хлеб пшеничный /ржано-пшеничный | C16: 40 | D16: 60 | E16: 4.5 | F16: 6.75 | G16: 2.38 | H16: 3.57 | I16: 16.8 | J16: 25.2 | K16: 120 | L16: 180 | M16: 0 | N16: 0 | O16: 0.05 | P16: 0.07 | Q16: 0.015 | R16: 0.02 | S16: 0 | T16: 0 | U16: 6.9 | V16: 11.5 | W16: 0 | X16: 0 | Y16: 0 | Z16: 0 | AA16: 0.6 | AB16: 0.08
A17: №376 | B17: Чай с сахаром | C17: 200/15 | D17: 200/15 | E17: 0.2 | F17: 0.2 | G17: 0.05 | H17: 0.05 | I17: 15.01 | J17: 15.01 | K17: 61.29 | L17: 61.29 | M17: 0.05 | N17: 0.05 | O17: 0 | P17: 0 | Q17: 0.01 | R17: 0.01 | S17: 0.1 | T17: 0.1 | U17: 5.25 | V17: 5.25 | W17: 8.24 | X17: 8.24 | Y17: 4.4 | Z17: 4.4 | AA17: 0.86 | AB17: 0.86
B19: Обед
A20: №71 | B20: Помидоры свежие | C20: 60 | D20: 100 | E20: 0.7 | F20: 1.1 | G20: 0.1 | H20: 0.2 | I20: 3.1 | J20: 5.2 | K20: 10.8 | L20: 18 | M20: 0 | N20: 0 | O20: 0.048 | P20: 0.06 | Q20: 0.024 | R20: 0.04 | S20: 15 | T20: 25 | U20: 8.4 | V20: 14 | W20: 15.6 | X20: 26 | Y20: 12 | Z20: 20 | AA20: 0.58 | AB20: 0.9
A21: №82 | B21: Борщ с капустой и картофелем на мкб со сметаной | C21: 250/15/10 | D21: 250/15/10 | E21: 7.5 | F21: 7.5 | G21: 7.99 | H21: 7.99 | I21: 23.09 | J21: 23.09 | K21: 150 | L21: 150 | M21: 0.27 | N21: 0.27 | O21: 0.06 | P21: 0.06 | Q21: 0.28 | R21: 0.28 | S21: 9.9 | T21: 9.9 | U21: 44.87 | V21: 44.87 | W21: 81.62 | X21: 81.62 | Y21: 26.53 | Z21: 26.53 | AA21: 1.47 | AB21: 1.47
A22: №203 | B22: Макароны отварные со сливочным маслом | C22: 150 | D22: 180 | E22: 5.47 | F22: 6.84 | G22: 6.37 | H22: 8.95 | I22: 36.34 | J22: 45.43 | K22: 224 | L22: 268.8 | M22: 0.03 | N22: 0.04 | O22: 0.09 | P22: 0.011 | Q22: 0.02 | R22: 0.03 | S22: 0 | T22: 0 | U22: 11.81 | V22: 14.7 | W22: 47.64 | X22: 59.5 | Y22: 8.36 | Z22: 10.45 | AA22: 0.85 | AB22: 1.06
A23: №268 | B23: Котлета из говядины | C23: 100 | D23: 100 | E23: 12.7 | F23: 12.7 | G23: 13.92 | H23: 13.92 | I23: 13.52 | J23: 13.52 | K23: 236 | L23: 236 | M23: 0.012 | N23: 0.012 | O23: 0.1 | P23: 0.1 | Q23: 0.13 | R23: 0.13 | S23: 1.62 | T23: 1.62 | U23: 19.87 | V23: 19.87 | W23: 151 | X23: 151 | Y23: 18.85 | Z23: 18.85 | AA23: 0.62 | AB23: 0.62
B24: Хлеб пшеничный /ржано-пшеничный | C24: 40 | D24: 60 | E24: 4.5 | F24: 6.75 | G24: 2.38 | H24: 3.57 | I24: 16.8 | J24: 25.2 | K24: 120 | L24: 180 | M24: 0 | N24: 0 | O24: 0.05 | P24: 0.07 | Q24: 0.015 | R24: 0.02 | S24: 0 | T24: 0 | U24: 6.9 | V24: 11.5 | W24: 0 | X24: 0 | Y24: 0 | Z24: 0 | AA24: 0.6 | AB24: 0.08
A25: №348 | B25: Компот из сухофруктов | C25: 200 | D25: 200 | E25: 0.54 | F25: 0.54 | G25: 0 | H25: 0 | I25: 17.58 | J25: 17.58 | K25: 70.53 | L25: 70.73 | M25: 0.18 | N25: 0.18 | O25: 0.005 | P25: 0.005 | Q25: 0.02 | R25: 0.02 | S25: 0.03 | T25: 0.03 | U25: 2.56 | V25: 2.56 | W25: 3.56 | X25: 3.56 | Y25: 1.74 | Z25: 1.74 | AA25: 0.1 | AB25: 0.1
B26: Итого за 1 день: | E26: =E13+E14+E15+E16+E17+E20+E21+E22+E23+E24+E25 -> 48.16 | F26: =F13+F14+F15+F16+F17+F20+F21+F22+F23+F24+F25 -> 54.43 | G26: 47.4 | H26: 52.46 | I26: 211.16 | J26: 239.15 | K26: 1494.62 | L26: 1666.82 | M26: 0.595 | N26: 0.605 | O26: 0.753 | P26: 0.84 | Q26: 0.841 | R26: 0.877 | S26: 49.428 | T26: 59.428 | U26: 463.66 | V26: 481.35 | W26: 711.4 | X26: 733.66 | Y26: 168.36 | Z26: =Z13+Z14+Z15+Z16+Z17+Z20+Z21+Z22+Z23+Z24+Z25 -> 178.45 | AA26: =AA13+AA14+AA15+AA16+AA17+AA20+AA21+AA22+AA23+AA24+AA25 -> 10.3 | AB26: =AB13+AB14+AB15+AB16+AB17+AB20+AB21+AB22+AB23+AB24+AB25 -> 9.79
B28: День 2 / Вторник
B29: Завтрак
A30: №53 | B30: Салат из отварной свеклы с зеленым горошком | C30: 60 | D30: 100 | E30: 0.82 | F30: 1.36 | G30: 3.05 | H30: 5.08 | I30: 8.81 | J30: 14.68 | K30: 55.68 | L30: 92.8 | M30: 0 | N30: 0 | O30: 0.015 | P30: 0.025 | Q30: 0.025 | R30: 0.033 | S30: 5.5 | T30: 8 | U30: 16.75 | V30: 27.92 | W30: 21.78 | X30: 36.3 | Y30: 10.5 | Z30: 17.5 | AA30: 0.63 | AB30: 1.05
A31: №259 | B31: Жаркое из говядины | C31: 200 | D31: 220 | E31: 11.38 | F31: 12.51 | G31: 12.53 | H31: 14.78 | I31: 27.92 | J31: 30 | K31: 301 | L31: 331 | M31: 0.15 | N31: 0.165 | O31: 0.18 | P31: 0.2 | Q31: 0.2 | R31: 0.22 | S31: 21.67 | T31: 23.84 | U31: 31.33 | V31: 34.46 | W31: 225 | X31: 247.5 | Y31: 49.59 | Z31: 54.54 | AA31: 1.92 | AB31: 2.11
B32: Хлеб пшеничный /ржано-пшеничный | C32: 40 | D32: 60 | E32: 4.5 | F32: 6.75 | G32: 2.38 | H32: 3.57 | I32: 16.8 | J32: 25.2 | K32: 120 | L32: 180 | M32: 0 | N32: 0 | O32: 0.05 | P32: 0.07 | Q32: 0.015 | R32: 0.02 | S32: 0 | T32: 0 | U32: 6.9 | V32: 11.5 | W32: 0 | X32: 0 | Y32: 0 | Z32: 0 | AA32: 0.6 | AB32: 0.08
A33: №382 | B33: Какао с молоком | C33: 200 | D33: 200 | E33: 2.34 | F33: 2.34 | G33: 2.57 | H33: 2.57 | I33: 30.57 | J33: 30.57 | K33: 117.12 | L33: 117.21 | M33: 0 | N33: 0 | O33: 0 | P33: 0 | Q33: 0 | R33: 0 | S33: 0 | T33: 0 | U33: 0.3 | V33: 0.3 | W33: 0 | X33: 0 | Y33: 0 | Z33: 0 | AA33: 0.45 | AB33: 0.45
B35: Обед
A36: №15 | B36: Сыр | C36: 15 | D36: 15 | E36: 3.9 | F36: 3.9 | G36: 3.97 | H36: 3.97 | I36: 0.52 | J36: 0.52 | K36: 54.75 | L36: 54.75 | M36: 0.6 | N36: 0.6 | O36: 0 | P36: 0 | Q36: 0 | R36: 0 | S36: 0.04 | T36: 0.04 | U36: 305 | V36: 305 | W36: 81 | X36: 81 | Y36: 0.75 | Z36: 0.75 | AA36: 0.14 | AB36: 0.14
A37: №88 | B37: Щи из свежей капусты с картофелем на мкб со сметаной | C37: 250/15/10 | D37: 250/15/10 | E37: 7.5 | F37: 7.5 | G37: 8.5 | H37: 8.5 | I37: 18.2 | J37: 18.2 | K37: 155.7 | L37: 155.7 | M37: 0.15 | N37: 0.15 | O37: 0.45 | P37: 0.45 | Q37: 0.6 | R37: 0.6 | S37: 10.25 | T37: 10.25 | U37: 45.25 | V37: 45.25 | W37: 78.74 | X37: 78.74 | Y37: 24.45 | Z37: 24.45 | AA37: 1.15 | AB37: 1.15
A38: №304 | B38: Рис отварной | C38: 150 | D38: 180 | E38: 3.7 | F38: 4.44 | G38: 6.37 | H38: 7.56 | I38: 37.23 | J38: 44.67 | K38: 220 | L38: 264 | M38: 0.03 | N38: 0.04 | O38: 0.04 | P38: 0.05 | Q38: 0.02 | R38: 0.03 | S38: 0 | T38: 0 | U38: 7.44 | V38: 9.3 | W38: 80.4 | X38: 100 | Y38: 26 | Z38: 32.5 | AA38: 0.53 | AB38: 0.67
A39: №234 | B39: Биточки рыбные с соусом | C39: 100/30 | D39: 100/30 | E39: 9.27 | F39: 9.27 | G39: 7.29 | H39: 7.29 | I39: 19.88 | J39: 19.88 | K39: 198 | L39: 198 | M39: 0.04 | N39: 0.04 | O39: 0.11 | P39: 0.11 | Q39: 0.12 | R39: 0.132 | S39: 2.55 | T39: 2.55 | U39: 52.95 | V39: 52.95 | W39: 239.39 | X39: 239.39 | Y39: 56.27 | Z39: 56.27 | AA39: 0.89 | AB39: 0.89
B40: Хлеб пшеничный /ржано-пшеничный | C40: 40 | D40: 60 | E40: 4.5 | F40: 6.75 | G40: 2.38 | H40: 3.57 | I40: 16.8 | J40: 25.2 | K40: 120 | L40: 180 | M40: 0 | N40: 0 | O40: 0.05 | P40: 0.07 | Q40: 0.015 | R40: 0.02 | S40: 0 | T40: 0 | U40: 6.9 | V40: 11.5 | W40: 0 | X40: 0 | Y40: 0 | Z40: 0 | AA40: 0.6 | AB40: 0.08
A41: №376 | B41: Чай с сахаром | C41: 200/15 | D41: 200/15 | E41: 0.2 | F41: 0.2 | G41: 0.05 | H41: 0.05 | I41: 15.01 | J41: 15.01 | K41: 61.29 | L41: 61.29 | M41: 0.05 | N41: 0.05 | O41: 0 | P41: 0 | Q41: 0.01 | R41: 0.01 | S41: 0.1 | T41: 0.1 | U41: 5.25 | V41: 5.25 | W41: 8.24 | X41: 8.24 | Y41: 4.4 | Z41: 4.4 | AA41: 0.86 | AB41: 0.86
B42: Итого за 1 день: | E42: =E30+E31+E32+E33+E36+E37+E38+E39+E40+E41 -> 48.11 | F42: =F30+F31+F32+F33+F36+F37+F38+F39+F40+F41 -> 55.02 | G42: 49.09 | H42: 56.94 | I42: 191.74 | J42: 223.93 | K42: 1403.54 | L42: 1634.75 | M42: 1.02 | N42: 1.045 | O42: 0.895 | P42: 0.975 | Q42: 1.005 | R42: 1.065 | S42: 40.11 | T42: 44.78 | U42: 478.07 | V42: 503.43 | W42: 734.55 | X42: 791.17 | Y42: 171.96 | Z42: 190.41 | AA42: 7.77 | AB42: 7.48
B44: День 3 / Среда
B45: Завтрак
A46: №71 | B46: Огурцы свежие | C46: 60 | D46: 100 | E46: 0.5 | F46: 0.83 | G46: 0.6 | H46: 1 | I46: 1.56 | J46: 2.6 | K46: 8.4 | L46: 14 | M46: 0 | N46: 0 | O46: 0.01 | P46: 0.016 | Q46: 0.024 | R46: 0.04 | S46: 6 | T46: 10 | U46: 13.8 | V46: 23 | W46: 25.2 | X46: 42 | Y46: 8.4 | Z46: 14 | AA46: 0.36 | AB46: 0.6
A47: №312 | B47: Картофельное пюре | C47: 150 | D47: 180 | E47: 3.43 | F47: 4.11 | G47: 7.1 | H47: 8.52 | I47: 25.3 | J47: 30.36 | K47: 170 | L47: 204 | M47: 0.03 | N47: 0.04 | O47: 0.17 | P47: 0.2 | Q47: 0.13 | R47: 0.15 | S47: 27.31 | T47: 32.77 | U47: 802 | V47: 962.8 | W47: 102.3 | X47: 123 | Y47: 34.45 | Z47: 41.37 | AA47: 1.24 | AB47: 1.5
A48: №301 | B48: Кнели куриные | C48: 100 | D48: 100 | E48: 15.14 | F48: 15.14 | G48: 10.6 | H48: 10.6 | I48: 6.95 | J48: 6.95 | K48: 228 | L48: 228 | M48: 0.04 | N48: 0.04 | O48: 0.1 | P48: 0.1 | Q48: 0.14 | R48: 0.14 | S48: 5.87 | T48: 5.87 | U48: 18.4 | V48: 18.4 | W48: 50 | X48: 50 | Y48: 28.38 | Z48: 28.38 | AA48: 1.48 | AB48: 1.48
B49: Хлеб пшеничный /ржано-пшеничный | C49: 40 | D49: 60 | E49: 4.5 | F49: 6.75 | G49: 2.38 | H49: 3.57 | I49: 16.8 | J49: 25.2 | K49: 120 | L49: 180 | M49: 0 | N49: 0 | O49: 0.05 | P49: 0.07 | Q49: 0.015 | R49: 0.02 | S49: 0 | T49: 0 | U49: 6.9 | V49: 11.5 | W49: 0 | X49: 0 | Y49: 0 | Z49: 0 | AA49: 0.6 | AB49: 0.08
A50: №376 | B50: Чай с сахаром | C50: 200/15 | D50: 200/15 | E50: 0.2 | F50: 0.2 | G50: 0.05 | H50: 0.05 | I50: 15.01 | J50: 15.01 | K50: 61.29 | L50: 61.29 | M50: 0.05 | N50: 0.05 | O50: 0 | P50: 0 | Q50: 0.01 | R50: 0.01 | S50: 0.1 | T50: 0.1 | U50: 5.25 | V50: 5.25 | W50: 8.24 | X50: 8.24 | Y50: 4.4 | Z50: 4.4 | AA50: 0.86 | AB50: 0.86
B52: Обед
A53: №45 | B53: Салат из белокачанной капусты | C53: 60 | D53: 100 | E53: 0.96 | F53: 0.57 | G53: 3.05 | H53: 5.08 | I53: 10.82 | J53: 18.03 | K53: 66.6 | L53: 111 | M53: 0.31 | N53: 0.52 | O53: 0.04 | P53: 0.06 | Q53: 0.05 | R53: 0.08 | S53: 6.3 | T53: 10.5 | U53: 13.38 | V53: 22.3 | W53: 35.1 | X53: 58.8 | Y53: 11.04 | Z53: 18.4 | AA53: 0.53 | AB53: 0.88
A54: №112 | B54: Суп с макаронными изделиями на мкб со сметаной | C54: 250/15/10 | D54: 250/15/10 | E54: 8.36 | F54: 8.36 | G54: 6.33 | H54: 6.33 | I54: 27.44 | J54: 27.44 | K54: 200 | L54: 200 | M54: 0.01 | N54: 0.01 | O54: 0.13 | P54: 0.13 | Q54: 0.09 | R54: 0.09 | S54: 12.77 | T54: 12.77 | U54: 20.65 | V54: 20.65 | W54: 60.4 | X54: 60.4 | Y54: 25.67 | Z54: 25.67 | AA54: 1.35 | AB54: 1.35
A55: №265 | B55: Плов гречневый с говядиной | C55: 200 | D55: 220 | E55: 10.33 | F55: 11.36 | G55: 16.8 | H55: 18.48 | I55: 34.35 | J55: 37.78 | K55: 354 | L55: 389.4 | M55: 0 | N55: 0 | O55: 0.34 | P55: 0.37 | Q55: 0.24 | R55: 0.26 | S55: 1.1 | T55: 1.21 | U55: 26.6 | V55: 29.2 | W55: 336 | X55: 369 | Y55: 159 | Z55: 175 | AA55: 0.65 | AB55: 0.71
B56: Хлеб пшеничный /ржано-пшеничный | C56: 40 | D56: 60 | E56: 4.5 | F56: 6.75 | G56: 2.38 | H56: 3.57 | I56: 16.8 | J56: 25.2 | K56: 120 | L56: 180 | M56: 0 | N56: 0 | O56: 0.05 | P56: 0.07 | Q56: 0.015 | R56: 0.02 | S56: 0 | T56: 0 | U56: 6.9 | V56: 11.5 | W56: 0 | X56: 0 | Y56: 0 | Z56: 0 | AA56: 0.6 | AB56: 0.08
A57: №389 | B57: Сок | C57: 200 | D57: 200 | E57: 0 | F57: 0 | G57: 0 | H57: 0 | I57: 39 | J57: 39 | K57: 76.8 | L57: 76.8 | M57: 0.09 | N57: 0.09 | O57: 0.015 | P57: 0.015 | Q57: 0.18 | R57: 0.18 | S57: 9 | T57: 9 | U57: 10 | V57: 10 | W57: 80 | X57: 80 | Y57: 4 | Z57: 4 | AA57: 1.8 | AB57: 1.8
B58: Итого за 1 день: | E58: =E46+E47+E48+E49+E50+E53+E54+E55+E56+E57 -> 47.92 | F58: =F46+F47+F48+F49+F50+F53+F54+F55+F56+F57 -> 54.07 | G58: 49.29 | H58: 57.2 | I58: 194.03 | J58: 227.57 | K58: 1405.09 | L58: 1644.49 | M58: 0.53 | N58: 0.75 | O58: 0.905 | P58: 1.031 | Q58: 0.894 | R58: 0.99 | S58: 68.45 | T58: 82.22 | U58: 923.88 | V58: 1114.6 | W58: 697.24 | X58: 791.44 | Y58: 275.34 | Z58: 311.22 | AA58: 9.47 | AB58: 9.34
B60: День 4 / Черверг
B61: Завтрак
A62: №338 | B62: Фрукт | C62: 200 | D62: 200 | E62: 0.52 | F62: 0.52 | G62: 0.34 | H62: 0.34 | I62: 28.82 | J62: 28.82 | K62: 104 | L62: 104 | M62: 0 | N62: 0 | O62: 0.05 | P62: 0.05 | Q62: 0.03 | R62: 0.03 | S62: 20.8 | T62: 20.8 | U62: 25.6 | V62: 25.6 | W62: 0.02 | X62: 0.02 | Y62: 30.4 | Z62: 30.4 | AA62: 1.5 | AB62: 1.5
A63: №175 | B63: Каша "Дружба" молочная со сливочным маслом | C63: 200/5/10 | D63: 200/5/10 | E63: 6.4 | F63: 6.44 | G63: 7.29 | H63: 7.29 | I63: 35.97 | J63: 35.97 | K63: 232 | L63: 232 | M63: 0.05 | N63: 0.05 | O63: 0.13 | P63: 0.13 | Q63: 0.16 | R63: 0.16 | S63: 1.3 | T63: 1.3 | U63: 339 | V63: 339 | W63: 166 | X63: 166 | Y63: 39.65 | Z63: 39.65 | AA63: 0.81 | AB63: 0.81
A64: №410 | B64: Ватрушка с творогом | C64: 60 | D64: 60 | E64: 7.9 | F64: 7.9 | G64: 6.9 | H64: 6.9 | I64: 33.13 | J64: 33.13 | K64: 208 | L64: 208 | M64: 0.01 | N64: 0.01 | O64: 0.07 | P64: 0.07 | Q64: 0.08 | R64: 0.08 | S64: 0.22 | T64: 0.22 | U64: 141.71 | V64: 141.71 | W64: 78.88 | X64: 78.88 | Y64: 11.68 | Z64: 11.68 | AA64: 0.58 | AB64: 0.58
B65: Хлеб пшеничный /ржано-пшеничный | C65: 40 | D65: 60 | E65: 4.5 | F65: 6.75 | G65: 2.38 | H65: 3.57 | I65: 16.8 | J65: 25.2 | K65: 120 | L65: 180 | M65: 0 | N65: 0 | O65: 0.05 | P65: 0.07 | Q65: 0.015 | R65: 0.02 | S65: 0 | T65: 0 | U65: 6.9 | V65: 11.5 | W65: 0 | X65: 0 | Y65: 0 | Z65: 0 | AA65: 0.6 | AB65: 0.08
A66: №348 | B66: Компот из сухофруктов | C66: 200 | D66: 200 | E66: 0.54 | F66: 0.54 | G66: 0 | H66: 0 | I66: 17.58 | J66: 17.58 | K66: 70.53 | L66: 70.53 | M66: 0.18 | N66: 0.18 | O66: 0.005 | P66: 0.005 | Q66: 0.02 | R66: 0.02 | S66: 0.03 | T66: 0.03 | U66: 2.56 | V66: 2.56 | W66: 3.56 | X66: 3.56 | Y66: 1.74 | Z66: 1.74 | AA66: 0.1 | AB66: 0.1
B68: Обед
A69: №66 | B69: Салат из моркови | C69: 60 | D69: 100 | E69: 0.75 | F69: 1.25 | G69: 4.05 | H69: 6.75 | I69: 8.16 | J69: 13.6 | K69: 77.06 | L69: 128.4 | M69: 0 | N69: 0 | O69: 0.03 | P69: 0.05 | Q69: 0.04 | R69: 0.066 | S69: 2.9 | T69: 4.8 | U69: 29.6 | V69: 49.3 | W69: 31.9 | X69: 53 | Y69: 22.04 | Z69: 36.7 | AA69: 0.41 | AB69: 0.62
A70: №96 | B70: Рассольник Ленинградский на мкб со сметаной | C70: 250/15/10 | D70: 250/15/10 | E70: 7.02 | F70: 7.02 | G70: 8.2 | H70: 8.2 | I70: 17.32 | J70: 17.32 | K70: 171.3 | L70: 171.3 | M70: 0.18 | N70: 0.18 | O70: 0.12 | P70: 0.12 | Q70: 0.1 | R70: 0.1 | S70: 10.68 | T70: 10.68 | U70: 28.84 | V70: 28.84 | W70: 105.4 | X70: 105.4 | Y70: 29.7 | Z70: 29.7 | AA70: 1.38 | AB70: 1.38
A71: №263 | B71: Рагу овощное с говядиной | C71: 200 | D71: 220 | E71: 15.14 | F71: 16.65 | G71: 14.9 | H71: 16.39 | I71: 12.95 | J71: 14.24 | K71: 246 | L71: 270.6 | M71: 0.18 | N71: 0.185 | O71: 0.12 | P71: 0.13 | Q71: 0.17 | R71: 0.2 | S71: 20.79 | T71: 23.29 | U71: 45.9 | V71: 50.5 | W71: 188 | X71: 206 | Y71: 41.3 | Z71: 45.4 | AA71: 2.7 | AB71: 3.05
B72: Хлеб пшеничный /ржано-пшеничный | C72: 40 | D72: 60 | E72: 4.5 | F72: 6.75 | G72: 2.38 | H72: 3.57 | I72: 16.8 | J72: 25.2 | K72: 120 | L72: 180 | M72: 0 | N72: 0 | O72: 0.05 | P72: 0.07 | Q72: 0.015 | R72: 0.02 | S72: 0 | T72: 0 | U72: 6.9 | V72: 11.5 | W72: 0 | X72: 0 | Y72: 0 | Z72: 0 | AA72: 0.6 | AB72: 0.08
A73: №376 | B73: Чай с сахаром | C73: 200/15 | D73: 200/15 | E73: 0.2 | F73: 0.2 | G73: 0.05 | H73: 0.05 | I73: 15.01 | J73: 15.01 | K73: 61.29 | L73: 61.29 | M73: 0.05 | N73: 0.05 | O73: 0 | P73: 0 | Q73: 0.01 | R73: 0.01 | S73: 0.1 | T73: 0.1 | U73: 5.25 | V73: 5.25 | W73: 8.24 | X73: 8.24 | Y73: 4.4 | Z73: 4.4 | AA73: 0.86 | AB73: 0.86
B74: Итого за 1 день: | E74: =E62+E63+E64+E65+E66+E69+E70+E71+E72+E73 -> 47.47 | F74: =F62+F63+F64+F65+F66+F69+F70+F71+F72+F73 -> 54.02 | G74: 46.49 | H74: 53.06 | I74: 202.54 | J74: 226.07 | K74: 1410.18 | L74: 1606.12 | M74: 0.65 | N74: 0.655 | O74: 0.625 | P74: 0.695 | Q74: 0.64 | R74: 0.706 | S74: 56.82 | T74: 61.22 | U74: 632.26 | V74: 665.76 | W74: 582 | X74: 621.1 | Y74: 180.91 | Z74: 199.67 | AA74: 9.54 | AB74: 9.06
B76: День 5 / Пятница
B77: Завтрак
A78: №71 | B78: Помидоры свежие | C78: 60 | D78: 100 | E78: 0.7 | F78: 1.1 | G78: 0.1 | H78: 0.2 | I78: 3.1 | J78: 5.2 | K78: 10.8 | L78: 18 | M78: 0 | N78: 0 | O78: 0.048 | P78: 0.06 | Q78: 0.024 | R78: 0.04 | S78: 15 | T78: 25 | U78: 8.4 | V78: 14 | W78: 15.6 | X78: 26 | Y78: 12 | Z78: 20 | AA78: 0.58 | AB78: 0.9
A79: №203 | B79: Макароны отварные со сливочным маслом | C79: 150 | D79: 180 | E79: 5.47 | F79: 6.84 | G79: 6.37 | H79: 8.95 | I79: 36.34 | J79: 45.43 | K79: 224 | L79: 268.8 | M79: 0.03 | N79: 0.04 | O79: 0.09 | P79: 0.011 | Q79: 0.02 | R79: 0.03 | S79: 0 | T79: 0 | U79: 11.81 | V79: 14.7 | W79: 47.64 | X79: 59.5 | Y79: 8.36 | Z79: 10.45 | AA79: 0.85 | AB79: 1.06
A80: №279 | B80: Тефтели мясные | C80: 100 | D80: 100 | E80: 9.99 | F80: 9.99 | G80: 13.4 | H80: 13.4 | I80: 24.4 | J80: 24.4 | K80: 204 | L80: 204 | M80: 0 | N80: 0 | O80: 0.06 | P80: 0.06 | Q80: 0.13 | R80: 0.13 | S80: 1.37 | T80: 1.37 | U80: 13.12 | V80: 13.12 | W80: 153.75 | X80: 153.75 | Y80: 27.5 | Z80: 27.5 | AA80: 1.87 | AB80: 1.87
B81: Хлеб пшеничный /ржано-пшеничный | C81: 40 | D81: 60 | E81: 4.5 | F81: 6.75 | G81: 2.38 | H81: 3.57 | I81: 16.8 | J81: 25.2 | K81: 120 | L81: 180 | M81: 0 | N81: 0 | O81: 0.05 | P81: 0.07 | Q81: 0.015 | R81: 0.02 | S81: 0 | T81: 0 | U81: 6.9 | V81: 11.5 | W81: 0 | X81: 0 | Y81: 0 | Z81: 0 | AA81: 0.6 | AB81: 0.08
A82: №376 | B82: Чай с сахаром | C82: 200/15 | D82: 200/15 | E82: 0.2 | F82: 0.2 | G82: 0.05 | H82: 0.05 | I82: 15.01 | J82: 15.01 | K82: 61.29 | L82: 61.29 | M82: 0.05 | N82: 0.05 | O82: 0 | P82: 0 | Q82: 0.01 | R82: 0.01 | S82: 0.1 | T82: 0.1 | U82: 5.25 | V82: 5.25 | W82: 8.24 | X82: 8.24 | Y82: 4.4 | Z82: 4.4 | AA82: 0.86 | AB82: 0.86
B84: Обед
A85: №49 | B85: Салат "Витаминный" | C85: 60 | D85: 100 | E85: 0.7 | F85: 1.17 | G85: 3.06 | H85: 5.1 | I85: 6.65 | J85: 11.09 | K85: 63.6 | L85: 106 | M85: 0 | N85: 0 | O85: 0.017 | P85: 0.03 | Q85: 0.017 | R85: 0.03 | S85: 14.85 | T85: 24.75 | U85: 20.94 | V85: 34.9 | W85: 17.61 | X85: 27.85 | Y85: 10.98 | Z85: 18.3 | AA85: 0.58 | AB85: 0.98
A86: №102 | B86: Суп картофельный с бобовыми(гороховый) на мкб | C86: 250/15 | D86: 250/15 | E86: 6.49 | F86: 6.49 | G86: 6.24 | H86: 6.24 | I86: 15.87 | J86: 15.87 | K86: 153.64 | L86: 153.6 | M86: 0 | N86: 0 | O86: 0.19 | P86: 0.19 | Q86: 0.09 | R86: 0.09 | S86: 1.15 | T86: 1.15 | U86: 25.23 | V86: 25.23 | W86: 95.62 | X86: 95.62 | Y86: 30.56 | Z86: 30.56 | AA86: 1.84 | AB86: 1.84
A87: №312,№321 | B87: Сложный гарнир | C87: 150 | D87: 180 | E87: 5.01 | F87: 6.01 | G87: 7.8 | H87: 9.36 | I87: 23.43 | J87: 28.11 | K87: 170.6 | L87: 194.7 | M87: 0.45 | N87: 0.54 | O87: 0.1 | P87: 0.12 | Q87: 0.12 | R87: 0.14 | S87: 13.4 | T87: 18.08 | U87: 250 | V87: 280 | W87: 105 | X87: 126 | Y87: 62 | Z87: 74.4 | AA87: 2.32 | AB87: 2.78
A88: №294 | B88: Котлета куриная | C88: 100 | D88: 100 | E88: 10.5 | F88: 10.5 | G88: 7.11 | H88: 7.11 | I88: 9.78 | J88: 9.78 | K88: 202 | L88: 202 | M88: 0.012 | N88: 0.012 | O88: 0.01 | P88: 0.01 | Q88: 0.13 | R88: 0.13 | S88: 1.62 | T88: 1.62 | U88: 19.87 | V88: 19.87 | W88: 151 | X88: 151 | Y88: 18.85 | Z88: 18.85 | AA88: 2.62 | AB88: 2.62
B89: Хлеб пшеничный /ржано-пшеничный | C89: 40 | D89: 60 | E89: 4.5 | F89: 6.75 | G89: 2.38 | H89: 3.57 | I89: 16.8 | J89: 25.2 | K89: 120 | L89: 180 | M89: 0 | N89: 0 | O89: 0.05 | P89: 0.07 | Q89: 0.015 | R89: 0.02 | S89: 0 | T89: 0 | U89: 6.9 | V89: 11.5 | W89: 0 | X89: 0 | Y89: 0 | Z89: 0 | AA89: 0.6 | AB89: 0.08
A90: №359 | B90: Кисель | C90: 200 | D90: 200 | E90: 0 | F90: 0 | G90: 0 | H90: 0 | I90: 35.94 | J90: 35.94 | K90: 118 | L90: 118 | M90: 0 | N90: 0 | O90: 0 | P90: 0 | Q90: 0 | R90: 0 | S90: 0 | T90: 0 | U90: 0.3 | V90: 0.3 | W90: 0 | X90: 0 | Y90: 0 | Z90: 0 | AA90: 0.45 | AB90: 0.45
B91: Итого за 1 день: | E91: =E78+E79+E80+E81+E82+E85+E86+E87+E88+E89+E90 -> 48.06 | F91: =F78+F79+F80+F81+F82+F85+F86+F87+F88+F89+F90 -> 55.8 | G91: 48.89 | H91: 57.55 | I91: 204.12 | J91: 241.23 | K91: 1447.93 | L91: 1686.39 | M91: 0.542 | N91: 0.642 | O91: 0.615 | P91: 0.7 | Q91: 0.83 | R91: 0.9 | S91: 47.49 | T91: 72.07 | U91: 368.72 | V91: 430.37 | W91: 594.46 | X91: 647.96 | Y91: 174.65 | Z91: 204.46 | AA91: 13.17 | AB91: 13.52
B93: День 6 / Суббота
B94: Завтрак
A95: №15 | B95: Сыр | C95: 15 | D95: 15 | E95: 3.9 | F95: 3.9 | G95: 3.97 | H95: 3.97 | I95: 0.52 | J95: 0.52 | K95: 54.75 | L95: 54.75 | M95: 0.6 | N95: 0.6 | O95: 0 | P95: 0 | Q95: 0 | R95: 0 | S95: 0.04 | T95: 0.04 | U95: 305 | V95: 305 | W95: 81 | X95: 81 | Y95: 0.75 | Z95: 0.75 | AA95: 0.14 | AB95: 0.14
A96: №304 | B96: Рис отварной | C96: 150 | D96: 180 | E96: 3.7 | F96: 4.44 | G96: 6.37 | H96: 7.56 | I96: 37.23 | J96: 44.67 | K96: 220 | L96: 264 | M96: 0.03 | N96: 0.04 | O96: 0.04 | P96: 0.05 | Q96: 0.02 | R96: 0.03 | S96: 0 | T96: 0 | U96: 7.44 | V96: 9.3 | W96: 80.4 | X96: 100 | Y96: 26 | Z96: 32.5 | AA96: 0.53 | AB96: 0.67
A97: №229 | B97: Рыба припущенная с овощами | C97: 100/50 | D97: 100/50 | E97: 9.4 | F97: 9.4 | G97: 7.04 | H97: 7.04 | I97: 12.76 | J97: 12.76 | K97: 174 | L97: 174 | M97: 0.04 | N97: 0.04 | O97: 0.11 | P97: 0.11 | Q97: 0.12 | R97: 0.12 | S97: 2.55 | T97: 2.55 | U97: 52.95 | V97: 52.95 | W97: 239.39 | X97: 239.39 | Y97: 56.27 | Z97: 56.27 | AA97: 0.89 | AB97: 0.89
B98: Хлеб пшеничный /ржано-пшеничный | C98: 40 | D98: 60 | E98: 4.5 | F98: 6.75 | G98: 2.38 | H98: 3.57 | I98: 16.8 | J98: 25.2 | K98: 120 | L98: 180 | M98: 0 | N98: 0 | O98: 0.05 | P98: 0.07 | Q98: 0.015 | R98: 0.02 | S98: 0 | T98: 0 | U98: 6.9 | V98: 11.5 | W98: 0 | X98: 0 | Y98: 0 | Z98: 0 | AA98: 0.6 | AB98: 0.08
A99: №342 | B99: Компот из свежих фруктов | C99: 200 | D99: 200 | E99: 0.17 | F99: 0.17 | G99: 0.17 | H99: 0.17 | I99: 19.18 | J99: 19.18 | K99: 76.8 | L99: 76.8 | M99: 0 | N99: 0 | O99: 0.01 | P99: 0.01 | Q99: 0.01 | R99: 0.01 | S99: 5.59 | T99: 5.59 | U99: 7.1 | V99: 7.1 | W99: 4.73 | X99: 4.73 | Y99: 8.17 | Z99: 8.17 | AA99: 0 | AB99: 0
B101: Обед
A102: №52 | B102: Салат из свеклы | C102: 60 | D102: 100 | E102: 0.87 | F102: 1.45 | G102: 4.05 | H102: 6.75 | I102: 9.22 | J102: 15.36 | K102: 53.82 | L102: 89.7 | M102: 0 | N102: 0 | O102: 0.01 | P102: 0.02 | Q102: 0.015 | R102: 0.03 | S102: 5.09 | T102: 10.18 | U102: 14.63 | V102: 24.38 | W102: 16.05 | X102: 26.75 | Y102: 9.95 | Z102: 16.58 | AA102: 0 | AB102: 0
A103: №108 | B103: Суп картофельный с клецками на мкб со сметаной | C103: 250/15/10 | D103: 250/15/10 | E103: 6.59 | F103: 6.59 | G103: 7.62 | H103: 7.62 | I103: 18.33 | J103: 18.33 | K103: 206 | L103: 206 | M103: 0.02 | N103: 0.02 | O103: 0.16 | P103: 0.16 | Q103: 0.12 | R103: 0.12 | S103: 15.1 | T103: 15.1 | U103: 25.66 | V103: 25.66 | W103: 87.7 | X103: 87.7 | Y103: 28.38 | Z103: 28.38 | AA103: 1.44 | AB103: 1.44
A104: №312 | B104: Картофельное пюре | C104: 150 | D104: 180 | E104: 3.43 | F104: 4.11 | G104: 7.1 | H104: 8.52 | I104: 25.3 | J104: 30.36 | K104: 170 | L104: 204 | M104: 0.03 | N104: 0.04 | O104: 0.17 | P104: 0.2 | Q104: 0.13 | R104: 0.15 | S104: 27.31 | T104: 32.77 | U104: 802 | V104: 962.8 | W104: 102.3 | X104: 123 | Y104: 34.45 | Z104: 41.37 | AA104: 1.24 | AB104: 1.5
A105: №260 | B105: Гуляш из говядины | C105: 100 | D105: 100 | E105: 10.4 | F105: 10.4 | G105: 8.5 | H105: 8.5 | I105: 9.44 | J105: 9.44 | K105: 167 | L105: 167 | M105: 0.3 | N105: 0.3 | O105: 0.1 | P105: 0.1 | Q105: 0.32 | R105: 0.32 | S105: 1.75 | T105: 1.75 | U105: 11.79 | V105: 11.79 | W105: 154.44 | X105: 154.44 | Y105: 19.96 | Z105: 19.96 | AA105: 2.67 | AB105: 2.67
B106: Хлеб пшеничный /ржано-пшеничный | C106: 40 | D106: 60 | E106: 4.5 | F106: 6.75 | G106: 2.38 | H106: 3.57 | I106: 16.8 | J106: 25.2 | K106: 120 | L106: 180 | M106: 0 | N106: 0 | O106: 0.05 | P106: 0.07 | Q106: 0.015 | R106: 0.02 | S106: 0 | T106: 0 | U106: 6.9 | V106: 11.5 | W106: 0 | X106: 0 | Y106: 0 | Z106: 0 | AA106: 0.6 | AB106: 0.08
A107: №376 | B107: Чай с сахаром | C107: 200/15 | D107: 200/15 | E107: 0.2 | F107: 0.2 | G107: 0.05 | H107: 0.05 | I107: 15.01 | J107: 15.01 | K107: 61.29 | L107: 61.29 | M107: 0.05 | N107: 0.05 | O107: 0 | P107: 0 | Q107: 0.01 | R107: 0.01 | S107: 0.1 | T107: 0.1 | U107: 5.25 | V107: 5.25 | W107: 8.24 | X107: 8.24 | Y107: 4.4 | Z107: 4.4 | AA107: 0.86 | AB107: 0.86
B108: Итого за 1 день: | E108: =E95+E96+E97+E98+E99+E102+E103+E104+E105+E106+E107 -> 47.66 | F108: =F95+F96+F97+F98+F99+F102+F103+F104+F105+F106+F107 -> 54.16 | G108: 49.63 | H108: 57.32 | I108: 191 | J108: 226 | K108: 1423.66 | L108: 1657.54 | M108: 1.07 | N108: 1.09 | O108: 0.7 | P108: 0.79 | Q108: 0.775 | R108: 0.83 | S108: 57.53 | T108: 68.08 | U108: 1245.62 | V108: 1427.23 | W108: 774.25 | X108: 825.25 | Y108: 188.33 | Z108: 208.38 | AA108: 8.97 | AB108: 8.33
B110: День 7 / Понедельник
B111: Завтрак
A112: №333 | B112: Булочка домашняя | C112: 45 | D112: 45 | E112: 4.42 | F112: 4.42 | G112: 4.2 | H112: 4.2 | I112: 24.84 | J112: 24.84 | K112: 153 | L112: 153 | M112: 0.01 | N112: 0.01 | O112: 0.07 | P112: 0.07 | Q112: 0.04 | R112: 0.04 | S112: 0.16 | T112: 0.16 | U112: 23.28 | V112: 23.28 | W112: 50.76 | X112: 50.76 | Y112: 8.64 | Z112: 8.64 | AA112: 0.59 | AB112: 0.59
A113: №302 | B113: Каша гречневая рассыпчатая | C113: 150 | D113: 180 | E113: 6.86 | F113: 8.23 | G113: 7.58 | H113: 9.09 | I113: 40.4 | J113: 48.48 | K113: 230 | L113: 276 | M113: 0.03 | N113: 0.04 | O113: 0.23 | P113: 0.28 | Q113: 0.1 | R113: 0.13 | S113: 0 | T113: 0 | U113: 12.72 | V113: 15.4 | W113: 163 | X113: 196 | Y113: 88 | Z113: 118 | AA113: 1.63 | AB113: 2.37
A114: №243 | B114: Сосиска отварная | C114: 100 | D114: 100 | E114: 10.6 | F114: 10.6 | G114: 13 | H114: 13 | I114: 8.5 | J114: 8.5 | K114: 191 | L114: 191 | M114: 0 | N114: 0 | O114: 0 | P114: 0 | Q114: 0 | R114: 0 | S114: 0 | T114: 0 | U114: 236.4 | V114: 236.4 | W114: 165.36 | X114: 165.36 | Y114: 20.8 | Z114: 20.8 | AA114: 1.87 | AB114: 1.87
B115: Хлеб пшеничный /ржано-пшеничный | C115: 40 | D115: 60 | E115: 4.5 | F115: 6.75 | G115: 2.38 | H115: 3.57 | I115: 16.8 | J115: 25.2 | K115: 120 | L115: 180 | M115: 0 | N115: 0 | O115: 0.05 | P115: 0.07 | Q115: 0.015 | R115: 0.02 | S115: 0 | T115: 0 | U115: 6.9 | V115: 11.5 | W115: 0 | X115: 0 | Y115: 0 | Z115: 0 | AA115: 0.6 | AB115: 0.08
A116: №376 | B116: Чай с сахаром | C116: 200/15 | D116: 200/15 | E116: 0.2 | F116: 0.2 | G116: 0.05 | H116: 0.05 | I116: 15.01 | J116: 15.01 | K116: 61.29 | L116: 61.29 | M116: 0.05 | N116: 0.05 | O116: 0 | P116: 0 | Q116: 0.01 | R116: 0.01 | S116: 0.1 | T116: 0.1 | U116: 5.25 | V116: 5.25 | W116: 8.24 | X116: 8.24 | Y116: 4.4 | Z116: 4.4 | AA116: 0.86 | AB116: 0.86
B118: Обед
A119: №45 | B119: Салат из белокочанной капусты | C119: 60 | D119: 100 | E119: 0.96 | F119: 0.57 | G119: 3.05 | H119: 5.08 | I119: 10.82 | J119: 18.03 | K119: 66.6 | L119: 111 | M119: 0.31 | N119: 0.52 | O119: 0.04 | P119: 0.06 | Q119: 0.05 | R119: 0.08 | S119: 6.3 | T119: 10.5 | U119: 13.38 | V119: 22.3 | W119: 35.1 | X119: 58.8 | Y119: 11.04 | Z119: 18.4 | AA119: 0.53 | AB119: 0.88
A120: №101 | B120: Суп картофельный с крупой (пшённый) на мкб со сметаной | C120: 250/15/10 | D120: 250/15/10 | E120: 7.38 | F120: 7.38 | G120: 6.5 | H120: 6.5 | I120: 20.5 | J120: 20.5 | K120: 192 | L120: 192 | M120: 0 | N120: 0 | O120: 0.15 | P120: 0.15 | Q120: 0.44 | R120: 0.44 | S120: 10.5 | T120: 10.5 | U120: 109.6 | V120: 109.6 | W120: 112.8 | X120: 112.8 | Y120: 45.74 | Z120: 45.75 | AA120: 1.9 | AB120: 1.9
A121: №259 | B121: Жаркое из говядины | C121: 200 | D121: 220 | E121: 11.38 | F121: 12.51 | G121: 12.53 | H121: 14.78 | I121: 27.92 | J121: 30 | K121: 301 | L121: 331 | M121: 0.15 | N121: 0.165 | O121: 0.18 | P121: 0.2 | Q121: 0.2 | R121: 0.22 | S121: 21.67 | T121: 23.84 | U121: 31.33 | V121: 34.46 | W121: 225 | X121: 247.5 | Y121: 49.59 | Z121: 54.54 | AA121: 1.92 | AB121: 2.11
B122: Хлеб пшеничный /ржано-пшеничный | C122: 40 | D122: 60 | E122: 4.5 | F122: 6.75 | G122: 2.38 | H122: 3.57 | I122: 16.8 | J122: 25.2 | K122: 120 | L122: 180 | M122: 0 | N122: 0 | O122: 0.05 | P122: 0.07 | Q122: 0.015 | R122: 0.02 | S122: 0 | T122: 0 | U122: 6.9 | V122: 11.5 | W122: 0 | X122: 0 | Y122: 0 | Z122: 0 | AA122: 0.6 | AB122: 0.08
A123: №348 | B123: Компот из сухофруктов | C123: 200 | D123: 200 | E123: 0.54 | F123: 0.54 | G123: 0 | H123: 0 | I123: 17.58 | J123: 17.58 | K123: 70.53 | L123: 70.53 | M123: 0.18 | N123: 0.18 | O123: 0.005 | P123: 0.005 | Q123: 0.02 | R123: 0.02 | S123: 0.03 | T123: 0.03 | U123: 2.56 | V123: 2.56 | W123: 3.56 | X123: 3.56 | Y123: 1.74 | Z123: 1.74 | AA123: 0.1 | AB123: 0.1
B124: Итого за 1 день: | E124: =E112+E113+E114+E115+E116+E119+E120+E121+E123 -> 46.84 | F124: =F112+F113+F114+F115+F116+F119+F120+F121+F123 -> 51.2 | G124: 49.29 | H124: 56.27 | I124: =I112+I113+I114+I115+I116+I119+I120+I121+I122+I123 -> 199.17 | J124: =J112+J113+J114+J115+J116+J119+J120+J121+J122+J123 -> 233.34 | K124: =K112+K113+K114+K115+K119+K120+K121+K122+K123 -> 1444.13 | L124: 1684.53 | M124: 0.68 | N124: 0.915 | O124: 0.775 | P124: 0.905 | Q124: 0.88 | R124: 0.97 | S124: 38.66 | T124: 45.03 | U124: 443.07 | V124: 467 | W124: 755.58 | X124: 834.78 | Y124: 225.55 | Z124: 267.87 | AA124: 9.74 | AB124: 9.98
B126: День 8 / Вторник
B127: Завтрак
A128: №15 | B128: Сыр | C128: 15 | D128: 15 | E128: 3.9 | F128: 3.9 | G128: 3.97 | H128: 3.97 | I128: 0.52 | J128: 0.52 | K128: 54.75 | L128: 54.75 | M128: 0.6 | N128: 0.6 | O128: 0 | P128: 0 | Q128: 0 | R128: 0 | S128: 0.04 | T128: 0.04 | U128: 305 | V128: 305 | W128: 81 | X128: 81 | Y128: 0.75 | Z128: 0.75 | AA128: 0.14 | AB128: 0.14
A129: №287 | B129: Голубцы ленивые | C129: 200 | D129: 220 | E129: 12.73 | F129: 14 | G129: 10.8 | H129: 11.8 | I129: 32.34 | J129: 35.57 | K129: 246 | L129: 270.6 | M129: 0 | N129: 0 | O129: 0.09 | P129: 0.1 | Q129: 0.14 | R129: 0.15 | S129: 50.9 | T129: 56 | U129: 69.3 | V129: 76.24 | W129: 171.8 | X129: 189 | Y129: 46.72 | Z129: 51.4 | AA129: 2.35 | AB129: 2.59
B130: Хлеб пшеничный /ржано-пшеничный | C130: 40 | D130: 60 | E130: 4.5 | F130: 6.75 | G130: 2.38 | H130: 3.57 | I130: 16.8 | J130: 25.2 | K130: 120 | L130: 180 | M130: 0 | N130: 0 | O130: 0.05 | P130: 0.07 | Q130: 0.015 | R130: 0.02 | S130: 0 | T130: 0 | U130: 6.9 | V130: 11.5 | W130: 0 | X130: 0 | Y130: 0 | Z130: 0 | AA130: 0.6 | AB130: 0.08
A131: №359 | B131: Кисель | C131: 200 | D131: 200 | E131: 0 | F131: 0 | G131: 0 | H131: 0 | I131: 35.94 | J131: 35.94 | K131: 118 | L131: 118 | M131: 0 | N131: 0 | O131: 0 | P131: 0 | Q131: 0 | R131: 0 | S131: 0 | T131: 0 | U131: 0.3 | V131: 0.3 | W131: 0 | X131: 0 | Y131: 0 | Z131: 0 | AA131: 0.45 | AB131: 0.45
B133: Обед
A134: №66 | B134: Салат из моркови | C134: 60 | D134: 100 | E134: 0.75 | F134: 1.25 | G134: 4.05 | H134: 6.75 | I134: 8.16 | J134: 13.6 | K134: 77.06 | L134: 128.4 | M134: 0 | N134: 0 | O134: 0.03 | P134: 0.05 | Q134: 0.04 | R134: 0.066 | S134: 2.9 | T134: 4.8 | U134: 29.6 | V134: 49.3 | W134: 31.9 | X134: 53 | Y134: 22.04 | Z134: 36.7 | AA134: 0.41 | AB134: 0.62
A135: №82 | B135: Борщ с капустой и картофелем на мкб со сметаной | C135: 250/15/10 | D135: 250/15/10 | E135: 7.5 | F135: 7.5 | G135: 7.99 | H135: 7.99 | I135: 23.09 | J135: 23.09 | K135: 150 | L135: 150 | M135: 0.27 | N135: 0.27 | O135: 0.06 | P135: 0.06 | Q135: 0.28 | R135: 0.28 | S135: 9.9 | T135: 9.9 | U135: 44.87 | V135: 44.87 | W135: 81.62 | X135: 81.62 | Y135: 26.53 | Z135: 26.53 | AA135: 1.47 | AB135: 1.47
A136: №203 | B136: Макароны отварные со сливочным маслом | C136: 150 | D136: 180 | E136: 5.47 | F136: 6.84 | G136: 6.37 | H136: 8.95 | I136: 36.34 | J136: 45.43 | K136: 224 | L136: 268.8 | M136: 0.03 | N136: 0.04 | O136: 0.09 | P136: 0.011 | Q136: 0.02 | R136: 0.03 | S136: 0 | T136: 0 | U136: 11.81 | V136: 14.7 | W136: 47.64 | X136: 59.5 | Y136: 8.36 | Z136: 10.45 | AA136: 0.85 | AB136: 1.06
A137: №301 | B137: Кнели куриные | C137: 100 | D137: 100 | E137: 15.14 | F137: 15.14 | G137: 10.6 | H137: 10.6 | I137: 6.95 | J137: 6.95 | K137: 228 | L137: 228 | M137: 0.04 | N137: 0.04 | O137: 0.1 | P137: 0.1 | Q137: 0.14 | R137: 0.14 | S137: 5.87 | T137: 5.87 | U137: 18.4 | V137: 18.4 | W137: 50 | X137: 50 | Y137: 28.38 | Z137: 28.38 | AA137: 1.48 | AB137: 1.48
B138: Хлеб пшеничный /ржано-пшеничный | C138: 40 | D138: 60 | E138: 4.5 | F138: 6.75 | G138: 2.38 | H138: 3.57 | I138: 16.8 | J138: 25.2 | K138: 120 | L138: 180 | M138: 0 | N138: 0 | O138: 0.05 | P138: 0.07 | Q138: 0.015 | R138: 0.02 | S138: 0 | T138: 0 | U138: 6.9 | V138: 11.5 | W138: 0 | X138: 0 | Y138: 0 | Z138: 0 | AA138: 0.6 | AB138: 0.08
A139: №382 | B139: Какао с молоком | C139: 200 | D139: 200 | E139: 2.34 | F139: 2.34 | G139: 2.57 | H139: 2.57 | I139: 30.57 | J139: 30.57 | K139: 117.12 | L139: 117.21 | M139: 0 | N139: 0 | O139: 0 | P139: 0 | Q139: 0 | R139: 0 | S139: 0 | T139: 0 | U139: 0.3 | V139: 0.3 | W139: 0 | X139: 0 | Y139: 0 | Z139: 0 | AA139: 0.45 | AB139: 0.45
B140: Итого за 1 день: | E140: =E128+E129+E130+E131+E134+E135+E137+E138+E139 -> 51.36 | F140: =F128+F129+F130+F131+F134+F135+F137+F138+F139 -> 57.63 | G140: =G128+G129+G130+G131+G134+G135+G137+G138+G139+G136 -> 51.11 | H140: =H128+H129+H130+H131+H134+H135+H137+H138+H139+H136 -> 59.77 | I140: =I128+I129+I130+I131+I134+I135+I136+I137+I138+I139 -> 207.51 | J140: 242.07 | K140: 1401 | L140: 1695.76 | M140: 0.94 | N140: 0.95 | O140: 0.47 | P140: 0.461 | Q140: 0.65 | R140: 0.706 | S140: 69.61 | T140: 76.61 | U140: 493.38 | V140: 532.11 | W140: 463.96 | X140: 514.12 | Y140: 132.78 | Z140: 154.21 | AA140: 8.8 | AB140: 8.42
B142: День 9 / Среда
B143: Завтрак
A144: №338 | B144: Фрукт | C144: 200 | D144: 200 | E144: 0.52 | F144: 0.52 | G144: 0.34 | H144: 0.34 | I144: 28.82 | J144: 28.82 | K144: 104 | L144: 104 | M144: 0 | N144: 0 | O144: 0.05 | P144: 0.05 | Q144: 0.03 | R144: 0.03 | S144: 20.8 | T144: 20.8 | U144: 25.6 | V144: 25.6 | W144: 0.02 | X144: 0.02 | Y144: 30.4 | Z144: 30.4 | AA144: 1.5 | AB144: 1.5
A145: №173 | B145: Каша молочная ячневая со сливочным маслом | C145: 200/5/10 | D145: 200/5/10 | E145: 7.8 | F145: 7.8 | G145: 8.3 | H145: 8.3 | I145: 20.26 | J145: 20.26 | K145: 206 | L145: 206 | M145: 0.05 | N145: 0.05 | O145: 0.23 | P145: 0.23 | Q145: 0.24 | R145: 0.24 | S145: 1.3 | T145: 1.3 | U145: 331.5 | V145: 331.5 | W145: 327.1 | X145: 327.1 | Y145: 54.5 | Z145: 54.5 | AA145: 2.11 | AB145: 2.11
A146: №418 | B146: Пирожок с повидлом | C146: 60 | D146: 60 | E146: 4.6 | F146: 4.6 | G146: 5.87 | H146: 5.87 | I146: 42.31 | J146: 42.31 | K146: 207 | L146: 207 | M146: 0.01 | N146: 0.01 | O146: 0.06 | P146: 0.06 | Q146: 0.04 | R146: 0.04 | S146: 0.25 | T146: 0.25 | U146: 22.01 | V146: 22.01 | W146: 41.55 | X146: 41.55 | Y146: 8.55 | Z146: 8.55 | AA146: 0.75 | AB146: 0.75
B147: Хлеб пшеничный /ржано-пшеничный | C147: 40 | D147: 60 | E147: 4.5 | F147: 6.75 | G147: 2.38 | H147: 3.57 | I147: 16.8 | J147: 25.2 | K147: 120 | L147: 180 | M147: 0 | N147: 0 | O147: 0.05 | P147: 0.07 | Q147: 0.015 | R147: 0.02 | S147: 0 | T147: 0 | U147: 6.9 | V147: 11.5 | W147: 0 | X147: 0 | Y147: 0 | Z147: 0 | AA147: 0.6 | AB147: 0.08
A148: №376 | B148: Чай с сахаром | C148: 200/15 | D148: 200/15 | E148: 0.2 | F148: 0.2 | G148: 0.05 | H148: 0.05 | I148: 15.01 | J148: 15.01 | K148: 61.29 | L148: 61.29 | M148: 0.05 | N148: 0.05 | O148: 0 | P148: 0 | Q148: 0.01 | R148: 0.01 | S148: 0.1 | T148: 0.1 | U148: 5.25 | V148: 5.25 | W148: 8.24 | X148: 8.24 | Y148: 4.4 | Z148: 4.4 | AA148: 0.86 | AB148: 0.86
B150: Обед
A151: №52 | B151: Салат из свеклы | C151: 60 | D151: 100 | E151: 0.87 | F151: 1.45 | G151: 4.05 | H151: 6.75 | I151: 9.22 | J151: 15.36 | K151: 53.82 | L151: 89.7 | M151: 0 | N151: 0 | O151: 0.01 | P151: 0.02 | Q151: 0.015 | R151: 0.03 | S151: 5.09 | T151: 10.18 | U151: 14.63 | V151: 24.38 | W151: 16.05 | X151: 26.75 | Y151: 9.95 | Z151: 16.58 | AA151: 0 | AB151: 0
A152: №108 | B152: Суп картофельный с клёцками на мкб со сметаной | C152: 250/15/10 | D152: 250/15/10 | E152: 6.59 | F152: 6.59 | G152: 7.62 | H152: 7.62 | I152: 12.33 | J152: 12.33 | K152: 206 | L152: 206 | M152: 0.02 | N152: 0.02 | O152: 0.16 | P152: 0.16 | Q152: 0.12 | R152: 0.12 | S152: 15.1 | T152: 15.1 | U152: 25.66 | V152: 25.66 | W152: 87.7 | X152: 87.7 | Y152: 28.38 | Z152: 28.38 | AA152: 1.44 | AB152: 1.44
A153: №263 | B153: Рагу овощное с говядиной | C153: 200 | D153: 220 | E153: 15.14 | F153: 16.65 | G153: 14.9 | H153: 16.39 | I153: 12.95 | J153: 14.24 | K153: 246 | L153: 270.6 | M153: 0.18 | N153: 0.185 | O153: 0.12 | P153: 0.13 | Q153: 0.17 | R153: 0.2 | S153: 20.79 | T153: 23.29 | U153: 45.9 | V153: 50.5 | W153: 188 | X153: 206 | Y153: 41.3 | Z153: 45.4 | AA153: 2.7 | AB153: 3.05
B154: Хлеб пшеничный /ржано-пшеничный | C154: 40 | D154: 60 | E154: 4.5 | F154: 6.75 | G154: 2.38 | H154: 3.57 | I154: 16.8 | J154: 25.2 | K154: 120 | L154: 180 | M154: 0 | N154: 0 | O154: 0.05 | P154: 0.07 | Q154: 0.015 | R154: 0.02 | S154: 0 | T154: 0 | U154: 6.9 | V154: 11.5 | W154: 0 | X154: 0 | Y154: 0 | Z154: 0 | AA154: 0.6 | AB154: 0.08
A155: №389 | B155: Сок | C155: 200 | D155: 200 | E155: 0 | F155: 0 | G155: 0 | H155: 0 | I155: 39 | J155: 39 | K155: 76.8 | L155: 76.8 | M155: 0.09 | N155: 0.09 | O155: 0.015 | P155: 0.015 | Q155: 0.18 | R155: 0.18 | S155: 9 | T155: 9 | U155: 10 | V155: 10 | W155: 80 | X155: 80 | Y155: 4 | Z155: 4 | AA155: 1.8 | AB155: 1.8
B156: Итого за 1 день: | E156: =E144+E145+E146+E147+E148+E151+E152+E153+E154+E155 -> 44.72 | F156: =F144+F145+F146+F147+F148+F151+F152+F153+F154+F155 -> 51.31 | G156: 45.89 | H156: 52.46 | I156: 213.5 | J156: 237.73 | K156: 1400.91 | L156: 1631 | M156: 0.4 | N156: 0.405 | O156: 0.745 | P156: 0.805 | Q156: 0.835 | R156: 0.89 | S156: 72.43 | T156: 80.02 | U156: 494.35 | V156: 517.9 | W156: 748.66 | X156: 777.36 | Y156: 181.48 | Z156: 192.21 | AA156: 12.36 | AB156: 11.67
B158: День 10 / Четверг
B159: Завтрак
A160: №71 | B160: Помидоры свежие | C160: 60 | D160: 100 | E160: 0.7 | F160: 1.1 | G160: 0.1 | H160: 0.2 | I160: 3.1 | J160: 5.2 | K160: 10.8 | L160: 18 | M160: 0 | N160: 0 | O160: 0.048 | P160: 0.06 | Q160: 0.024 | R160: 0.04 | S160: 15 | T160: 25 | U160: 8.4 | V160: 14 | W160: 15.6 | X160: 26 | Y160: 12 | Z160: 20 | AA160: 0.58 | AB160: 0.9
A161: №312 | B161: Картофельное пюре | C161: 150 | D161: 180 | E161: 3.43 | F161: 4.11 | G161: 7.1 | H161: 8.52 | I161: 25.3 | J161: 30.36 | K161: 170 | L161: 204 | M161: 0.03 | N161: 0.04 | O161: 0.17 | P161: 0.2 | Q161: 0.13 | R161: 0.15 | S161: 27.31 | T161: 32.77 | U161: 802 | V161: 962.8 | W161: 102.3 | X161: 123 | Y161: 34.45 | Z161: 41.37 | AA161: 1.24 | AB161: 1.5
A162: №379 | B162: Тефтели мясные | C162: 100 | D162: 100 | E162: 9.99 | F162: 9.99 | G162: 13.4 | H162: 13.4 | I162: 24.4 | J162: 24.4 | K162: 204 | L162: 204 | M162: 0 | N162: 0 | O162: 0.06 | P162: 0.06 | Q162: 0.13 | R162: 0.13 | S162: 1.37 | T162: 1.37 | U162: 13.12 | V162: 13.12 | W162: 153.75 | X162: 153.75 | Y162: 27.5 | Z162: 27.5 | AA162: 1.87 | AB162: 1.87
B163: Хлеб пшеничный /ржано-пшеничный | C163: 40 | D163: 60 | E163: 4.5 | F163: 6.75 | G163: 2.38 | H163: 3.57 | I163: 16.8 | J163: 25.2 | K163: 120 | L163: 180 | M163: 0 | N163: 0 | O163: 0.05 | P163: 0.07 | Q163: 0.015 | R163: 0.02 | S163: 0 | T163: 0 | U163: 6.9 | V163: 11.5 | W163: 0 | X163: 0 | Y163: 0 | Z163: 0 | AA163: 0.6 | AB163: 0.08
A164: №348 | B164: Компот из сухофруктов | C164: 200 | D164: 200 | E164: 0.54 | F164: 0.54 | G164: 0 | H164: 0 | I164: 17.58 | J164: 17.58 | K164: 70.53 | L164: 70.53 | M164: 0.18 | N164: 0.18 | O164: 0.005 | P164: 0.005 | Q164: 0.02 | R164: 0.02 | S164: 0.03 | T164: 0.03 | U164: 2.56 | V164: 2.56 | W164: 3.56 | X164: 3.56 | Y164: 1.74 | Z164: 1.74 | AA164: 0.1 | AB164: 0.1
B166: Обед
A167: №49 | B167: Салат "Витаминный" | C167: 60 | D167: 100 | E167: 0.7 | F167: 1.17 | G167: 3.06 | H167: 5.1 | I167: 6.65 | J167: 11.09 | K167: 63.6 | L167: 106 | M167: 0 | N167: 0 | O167: 0.017 | P167: 0.03 | Q167: 0.017 | R167: 0.03 | S167: 14.85 | T167: 24.75 | U167: 20.94 | V167: 34.9 | W167: 17.61 | X167: 27.85 | Y167: 10.98 | Z167: 18.3 | AA167: 0.58 | AB167: 0.98
A168: №112 | B168: Суп с макаронными изделиями на мкб со сметаной | C168: 250/15/10 | D168: 250/15/10 | E168: 8.36 | F168: 8.36 | G168: 6.33 | H168: 6.33 | I168: 27.44 | J168: 27.44 | K168: 200 | L168: 200 | M168: 0.01 | N168: 0.01 | O168: 0.13 | P168: 0.13 | Q168: 0.09 | R168: 0.09 | S168: 12.77 | T168: 12.77 | U168: 20.65 | V168: 20.65 | W168: 60.4 | X168: 60.4 | Y168: 25.67 | Z168: 25.67 | AA168: 1.35 | AB168: 1.35
A169: №304 | B169: Рис отварной | C169: 150 | D169: 180 | E169: 3.7 | F169: 4.44 | G169: 6.37 | H169: 7.56 | I169: 37.23 | J169: 44.67 | K169: 220 | L169: 264 | M169: 0.03 | N169: 0.04 | O169: 0.04 | P169: 0.05 | Q169: 0.02 | R169: 0.03 | S169: 0 | T169: 0 | U169: 7.44 | V169: 9.3 | W169: 80.4 | X169: 100 | Y169: 26 | Z169: 32.5 | AA169: 0.53 | AB169: 0.67
A170: №229 | B170: Рыба припущенная с овощами | C170: 100/50 | D170: 100/50 | E170: 9.4 | F170: 9.4 | G170: 7.04 | H170: 7.04 | I170: 12.76 | J170: 12.76 | K170: 174 | L170: 174 | M170: 0.04 | N170: 0.04 | O170: 0.11 | P170: 0.11 | Q170: 0.12 | R170: 0.12 | S170: 2.55 | T170: 2.55 | U170: 52.95 | V170: 52.95 | W170: 239.39 | X170: 239.39 | Y170: 56.27 | Z170: 56.27 | AA170: 0.89 | AB170: 0.89
B171: Хлеб пшеничный /ржано-пшеничный | C171: 40 | D171: 60 | E171: 4.5 | F171: 6.75 | G171: 2.38 | H171: 3.57 | I171: 16.8 | J171: 25.2 | K171: 120 | L171: 180 | M171: 0 | N171: 0 | O171: 0.05 | P171: 0.07 | Q171: 0.015 | R171: 0.02 | S171: 0 | T171: 0 | U171: 6.9 | V171: 11.5 | W171: 0 | X171: 0 | Y171: 0 | Z171: 0 | AA171: 0.6 | AB171: 0.08
A172: №376 | B172: Чай с сахаром | C172: 200/15 | D172: 200/15 | E172: 0.2 | F172: 0.2 | G172: 0.05 | H172: 0.05 | I172: 15.01 | J172: 15.01 | K172: 61.29 | L172: 61.29 | M172: 0.05 | N172: 0.05 | O172: 0 | P172: 0 | Q172: 0.01 | R172: 0.01 | S172: 0.1 | T172: 0.1 | U172: 5.25 | V172: 5.25 | W172: 8.24 | X172: 8.24 | Y172: 4.4 | Z172: 4.4 | AA172: 0.86 | AB172: 0.86
B173: Итого за 1 день: | E173: =E160+E161+E162+E163+E164+E167+E168+E169+E170+E171+E172 -> 46.02 | F173: =F160+F161+F162+F163+F164+F167+F168+F169+F170+F171+F172 -> 52.81 | G173: 48.21 | H173: 55.34 | I173: 203.07 | J173: 238.91 | K173: 1414.22 | L173: 1661.82 | M173: 0.34 | N173: 0.36 | O173: 0.68 | P173: 0.785 | Q173: 0.591 | R173: 0.66 | S173: 73.98 | T173: 99.34 | U173: 947.11 | V173: 1138.53 | W173: 681.25 | X173: 742.19 | Y173: 199.01 | Z173: 227.75 | AA173: 9.2 | AB173: 9.28
B175: День 11 / Пятница
B176: Завтрак
A177: №71 | B177: Огурцы свежие | C177: 60 | D177: 100 | E177: 0.5 | F177: 0.83 | G177: 0.6 | H177: 1 | I177: 1.56 | J177: 2.6 | K177: 8.4 | L177: 14 | M177: 0 | N177: 0 | O177: 0.01 | P177: 0.016 | Q177: 0.024 | R177: 0.04 | S177: 6 | T177: 10 | U177: 13.8 | V177: 23 | W177: 25.2 | X177: 42 | Y177: 8.4 | Z177: 14 | AA177: 0.36 | AB177: 0.6
A178: №203 | B178: Макароны отварные со сливочным маслом | C178: 150 | D178: 180 | E178: 5.47 | F178: 6.84 | G178: 6.37 | H178: 8.95 | I178: 36.34 | J178: 45.43 | K178: 224 | L178: 268.8 | M178: 0.03 | N178: 0.04 | O178: 0.09 | P178: 0.011 | Q178: 0.02 | R178: 0.03 | S178: 0 | T178: 0 | U178: 11.81 | V178: 14.7 | W178: 47.64 | X178: 59.5 | Y178: 8.36 | Z178: 10.45 | AA178: 0.85 | AB178: 1.06
A179: №294 | B179: Котлета куриная | C179: 100 | D179: 100 | E179: 10.5 | F179: 10.5 | G179: 7.11 | H179: 7.11 | I179: 9.78 | J179: 9.78 | K179: 202 | L179: 202 | M179: 0.012 | N179: 0.012 | O179: 0.01 | P179: 0.01 | Q179: 0.13 | R179: 0.13 | S179: 1.62 | T179: 1.62 | U179: 19.87 | V179: 19.87 | W179: 151 | X179: 151 | Y179: 18.85 | Z179: 18.85 | AA179: 2.62 | AB179: 2.62
B180: Хлеб пшеничный /ржано-пшеничный | C180: 40 | D180: 60 | E180: 4.5 | F180: 6.75 | G180: 2.38 | H180: 3.57 | I180: 16.8 | J180: 25.2 | K180: 120 | L180: 180 | M180: 0 | N180: 0 | O180: 0.05 | P180: 0.07 | Q180: 0.015 | R180: 0.02 | S180: 0 | T180: 0 | U180: 6.9 | V180: 11.5 | W180: 0 | X180: 0 | Y180: 0 | Z180: 0 | AA180: 0.6 | AB180: 0.08
A181: №376 | B181: Чай с сахаром | C181: 200/15 | D181: 200/15 | E181: 0.2 | F181: 0.2 | G181: 0.05 | H181: 0.05 | I181: 15.01 | J181: 15.01 | K181: 61.29 | L181: 61.29 | M181: 0.05 | N181: 0.05 | O181: 0 | P181: 0 | Q181: 0.01 | R181: 0.01 | S181: 0.1 | T181: 0.1 | U181: 5.25 | V181: 5.25 | W181: 8.24 | X181: 8.24 | Y181: 4.4 | Z181: 4.4 | AA181: 0.86 | AB181: 0.86
B183: Обед
A184: №66 | B184: Салат из моркови с изюмом | C184: 60 | D184: 100 | E184: 0.76 | F184: 1.26 | G184: 4.04 | H184: 6.73 | I184: 11.03 | J184: 18.38 | K184: 49.8 | L184: 83 | M184: 0 | N184: 0 | O184: 0.04 | P184: 0.06 | Q184: 0.04 | R184: 0.06 | S184: 2.1 | T184: 3.8 | U184: 29.13 | V184: 48.52 | W184: 34.36 | X184: 57.28 | Y184: 10.17 | Z184: 16.96 | AA184: 0.55 | AB184: 0.92
A185: №88 | B185: Щи из свежей капусты с картофелем на мкб со сметаной | C185: 250/15/10 | D185: 250/15/10 | E185: 7.5 | F185: 7.5 | G185: 8.5 | H185: 8.5 | I185: 18.2 | J185: 18.2 | K185: 155.7 | L185: 155.7 | M185: 0.15 | N185: 0.15 | O185: 0.45 | P185: 0.45 | Q185: 0.6 | R185: 0.6 | S185: 10.25 | T185: 10.25 | U185: 45.25 | V185: 45.25 | W185: 78.74 | X185: 78.74 | Y185: 24.45 | Z185: 24.45 | AA185: 1.15 | AB185: 1.15
A186: №306 | B186: Пюре гороховое | C186: 150 | D186: 180 | E186: 8.79 | F186: 10.54 | G186: 8.82 | H186: 9.58 | I186: 38.15 | J186: 45.78 | K186: 205 | L186: 228 | M186: 0.03 | N186: 0.04 | O186: 0.045 | P186: 0.054 | Q186: 0.01 | R186: 0.011 | S186: 0 | T186: 0 | U186: 146.2 | V186: 155.8 | W186: 115.4 | X186: 136.6 | Y186: 44.04 | Z186: 52.85 | AA186: 0.35 | AB186: 0.42
A187: №260 | B187: Гуляш из говядины | C187: 100 | D187: 100 | E187: 13.04 | F187: 13.04 | G187: 8.5 | H187: 8.5 | I187: 9.44 | J187: 9.44 | K187: 167 | L187: 167 | M187: 0.3 | N187: 0.3 | O187: 0.1 | P187: 0.1 | Q187: 0.32 | R187: 0.32 | S187: 1.75 | T187: 1.75 | U187: 11.79 | V187: 11.79 | W187: 154.44 | X187: 154.44 | Y187: 19.96 | Z187: 19.96 | AA187: 2.67 | AB187: 2.67
B188: Хлеб пшеничный /ржано-пшеничный | C188: 40 | D188: 60 | E188: 4.5 | F188: 6.75 | G188: 2.38 | H188: 3.57 | I188: 16.8 | J188: 25.2 | K188: 120 | L188: 180 | M188: 0 | N188: 0 | O188: 0.05 | P188: 0.07 | Q188: 0.015 | R188: 0.02 | S188: 0 | T188: 0 | U188: 6.9 | V188: 11.5 | W188: 0 | X188: 0 | Y188: 0 | Z188: 0 | AA188: 0.6 | AB188: 0.08
A189: №359 | B189: Кисель | C189: 200 | D189: 200 | E189: 0 | F189: 0 | G189: 0 | H189: 0 | I189: 35.94 | J189: 35.94 | K189: 118 | L189: 118 | M189: 0 | N189: 0 | O189: 0 | P189: 0 | Q189: 0 | R189: 0 | S189: 0 | T189: 0 | U189: 0.3 | V189: 0.3 | W189: 0 | X189: 0 | Y189: 0 | Z189: 0 | AA189: 0.45 | AB189: 0.45
B190: Итого за 1 день: | E190: =E177+E178+E179+E180+E181+E184+E185+E186+E187+E188+E189 -> 55.76 | F190: =F177+F178+F179+F180+F181+F184+F185+F186+F187+F188+F189 -> 64.21 | G190: 48.75 | H190: 57.56 | I190: 209.05 | J190: 250.96 | K190: 1431.19 | L190: 1657.79 | M190: 0.572 | N190: 0.592 | O190: 0.845 | P190: 0.841 | Q190: 1.184 | R190: 1.241 | S190: 21.82 | T190: 27.52 | U190: 297.2 | V190: 347.48 | W190: =W177+W178+W179+W180+W181+Y184+W185+W186+W187+W188+W189 -> 590.83 | X190: =X177+X178+X179+X180+X181+Z184+X185+X186+X187+X188+X189 -> 647.48 | Y190: =Y177+Y178+Y179+Y180+Y181+AA184+Y185+Y186+Y187+Y188+Y189 -> 129.01 | Z190: 145.88 | AA190: 11.06 | AB190: 10.91
B192: День 12 / Суббота
B193: Завтрак
A194: №15 | B194: Сыр | C194: 15 | D194: 15 | E194: 3.9 | F194: 3.9 | G194: 3.97 | H194: 3.97 | I194: 0.52 | J194: 0.52 | K194: 54.75 | L194: 54.75 | M194: 0.6 | N194: 0.6 | O194: 0 | P194: 0 | Q194: 0 | R194: 0 | S194: 0.04 | T194: 0.04 | U194: 305 | V194: 305 | W194: 81 | X194: 81 | Y194: 0.75 | Z194: 0.75 | AA194: 0.14 | AB194: 0.14
A195: №175 | B195: Каша "дружба" молочная со сливочным маслом | C195: 200/5/10 | D195: 200/5/10 | E195: 6.4 | F195: 6.44 | G195: 7.29 | H195: 7.29 | I195: 35.97 | J195: 35.97 | K195: 232 | L195: 232 | M195: 0.05 | N195: 0.05 | O195: 0.13 | P195: 0.13 | Q195: 0.16 | R195: 0.16 | S195: 1.3 | T195: 1.3 | U195: 339 | V195: 339 | W195: 166 | X195: 166 | Y195: 39.65 | Z195: 39.65 | AA195: 0.81 | AB195: 0.81
A196: №410 | B196: Ватрушка с творогом | C196: 60 | D196: 60 | E196: 7.9 | F196: 7.9 | G196: 6.9 | H196: 6.9 | I196: 33.13 | J196: 33.13 | K196: 208 | L196: 208 | M196: 0.01 | N196: 0.01 | O196: 0.07 | P196: 0.07 | Q196: 0.08 | R196: 0.08 | S196: 0.22 | T196: 0.22 | U196: 141.71 | V196: 141.71 | W196: 78.88 | X196: 78.88 | Y196: 11.68 | Z196: 11.68 | AA196: 0.58 | AB196: 0.58
B197: Хлеб пшеничный /ржано-пшеничный | C197: 40 | D197: 60 | E197: 4.5 | F197: 6.75 | G197: 2.38 | H197: 3.57 | I197: 16.8 | J197: 25.2 | K197: 120 | L197: 180 | M197: 0 | N197: 0 | O197: 0.05 | P197: 0.07 | Q197: 0.015 | R197: 0.02 | S197: 0 | T197: 0 | U197: 6.9 | V197: 11.5 | W197: 0 | X197: 0 | Y197: 0 | Z197: 0 | AA197: 0.6 | AB197: 0.08
A198: №348 | B198: Компот из сухофруктов | C198: 200 | D198: 200 | E198: 0.54 | F198: 0.54 | G198: 0 | H198: 0 | I198: 17.58 | J198: 17.58 | K198: 70.53 | L198: 70.53 | M198: 0.18 | N198: 0.18 | O198: 0.005 | P198: 0.005 | Q198: 0.02 | R198: 0.02 | S198: 0.03 | T198: 0.03 | U198: 2.56 | V198: 2.56 | W198: 3.56 | X198: 3.56 | Y198: 1.74 | Z198: 1.74 | AA198: 0.1 | AB198: 0.1
B200: Обед
A201: №45 | B201: Салат из белокочанной капусты | C201: 60 | D201: 100 | E201: 0.96 | F201: 0.57 | G201: 3.05 | H201: 5.08 | I201: 10.82 | J201: 18.03 | K201: 66.6 | L201: 111 | M201: 0.31 | N201: 0.52 | O201: 0.04 | P201: 0.06 | Q201: 0.05 | R201: 0.08 | S201: 6.3 | T201: 10.5 | U201: 13.38 | V201: 22.3 | W201: 35.1 | X201: 58.8 | Y201: 11.04 | Z201: 18.4 | AA201: 0.53 | AB201: 0.88
A202: №101 | B202: Суп картофельный с крупой (гречневый) на мкб | C202: 250/15 | D202: 250/15 | E202: 7.38 | F202: 7.38 | G202: 7.5 | H202: 7.5 | I202: 23.5 | J202: 23.5 | K202: 188 | L202: 188 | M202: 0 | N202: 0 | O202: 0.15 | P202: 0.15 | Q202: 0.104 | R202: 0.104 | S202: 16.5 | T202: 16.5 | U202: 19.06 | V202: 19.06 | W202: 112.8 | X202: 112.8 | Y202: 45.75 | Z202: 45.75 | AA202: 1.9 | AB202: 1.9
A203: №259 | B203: Жаркое из говядины | C203: 200 | D203: 220 | E203: 11.38 | F203: 12.51 | G203: 12.53 | H203: 14.78 | I203: 27.92 | J203: 30 | K203: 301 | L203: 331 | M203: 0.15 | N203: 0.165 | O203: 0.18 | P203: 0.2 | Q203: 0.2 | R203: 0.22 | S203: 21.67 | T203: 23.84 | U203: 31.33 | V203: 34.46 | W203: 225 | X203: 247.5 | Y203: 49.59 | Z203: 54.54 | AA203: 1.92 | AB203: 2.11
B204: Хлеб пшеничный /ржано-пшеничный | C204: 40 | D204: 60 | E204: 4.5 | F204: 6.75 | G204: 2.38 | H204: 3.57 | I204: 16.8 | J204: 25.2 | K204: 120 | L204: 180 | M204: 0 | N204: 0 | O204: 0.05 | P204: 0.07 | Q204: 0.015 | R204: 0.02 | S204: 0 | T204: 0 | U204: 6.9 | V204: 11.5 | W204: 0 | X204: 0 | Y204: 0 | Z204: 0 | AA204: 0.6 | AB204: 0.08
A205: №376 | B205: Чай с сахаром | C205: 200/15 | D205: 200/15 | E205: 0.2 | F205: 0.2 | G205: 0.05 | H205: 0.05 | I205: 15.01 | J205: 15.01 | K205: 61.29 | L205: 61.29 | M205: 0.05 | N205: 0.05 | O205: 0 | P205: 0 | Q205: 0.01 | R205: 0.01 | S205: 0.1 | T205: 0.1 | U205: 5.25 | V205: 5.25 | W205: 8.24 | X205: 8.24 | Y205: 4.4 | Z205: 4.4 | AA205: 0.86 | AB205: 0.86
B206: Итого за 1 день: | E206: =E194+E195+E196+E197+E198+E201+E202+E203+E204+E205 -> 47.66 | F206: =F194+F195+F196+F197+F198+F201+F202+F203+F204+F205 -> 52.94 | G206: 46.05 | H206: 52.71 | I206: 198.05 | J206: 224.14 | K206: 1422.17 | L206: 1616.57 | M206: 1.35 | N206: 1.575 | O206: 0.675 | P206: 0.755 | Q206: 0.654 | R206: 0.714 | S206: 46.16 | T206: 52.53 | U206: 871.09 | V206: 892.34 | W206: 710.58 | X206: 756.78 | Y206: 164.6 | Z206: 176.91 | AA206: 8.04 | AB206: 7.54
B207: Итого за 12 дней: | E207: =E26+E42+E58+E74+E91+E108+E124+E140+E156+E173+E190+E206 -> 579.74 | F207: =F26+F42+F58+F74+F91+F108+F124+F140+F156+F173+F190+F206 -> 657.6 | G207: 580.09 | H207: 668.64 | I207: 2424.94 | J207: 2811.1 | K207: 17098.64 | L207: 19843.58 | M207: 8.689 | N207: 9.584 | O207: 8.683 | P207: 9.583 | Q207: 9.779 | R207: 10.549 | S207: 642.488 | T207: 768.848 | U207: 7658.41 | V207: 8518.1 | W207: 8044.76 | X207: 8683.29 | Y207: 2191.98 | Z207: 2457.42 | AA207: 118.42 | AB207: 115.32
B208: Усреднённые данные на 1 день | E208: =E207/12 -> 48.31166667 | F208: =F207/12 -> 54.8 | G208: 48.34083333 | H208: 55.72 | I208: 202.0783333 | J208: 234.2583333 | K208: 1424.886667 | L208: 1653.631667 | M208: 0.7240833333 | N208: 0.7986666667 | O208: 0.7235833333 | P208: 0.78 | Q208: 0.8149166667 | R208: 0.8790833333 | S208: 53.54066667 | T208: 64.07066667 | U208: 638.2008333 | V208: 726.4 | W208: 670.3966667 | X208: 723.6075 | Y208: 182.665 | Z208: 204.785 | AA208: 9.868333333 | AB208: 9.61
B209: % ккал от суточной нормы | K209: 60,5% | L209: 60.60%

Sheet МЕню 7,40
A1: Согласовано: | B1: Утверждаю:
A2: Директор МБОУ | B2: Директор ООО "Эдем"
A4: _________________ | B4: _____________Г. Т. Сафина
A6: Примерное двухнедельное меню рационов сбалансированного питания учащихся
A7: за счёт бюджетных средств из расчёта на одного учащегося в день
A9: Наименование блюда | B9: Масса порций, в гр.
A10: ДЕНЬ 1 / ПОНЕДЕЛЬНИК
A11: Кондитерское изделие | B11: 50
A12: Чай с сахаром | B12: 200/15
A14: ДЕНЬ 2 /ВТОРНИК
A15: Чай с сахаром | B15: 200/15
A16: Кондитерское изделие | B16: 50
A18: ДЕНЬ 3 /СРЕДА
A19: Кондитерское изделие | B19: 50
A20: Чай с сахаром | B20: 200/15
A22: ДЕНЬ 4 /ЧЕТВЕРГ
A23: Кондитерское изделие | B23: 50
A24: Компот из сухофруктов | B24: 200
A26: ДЕНЬ 5/ПЯТНИЦА
A27: Кондитерское изделие | B27: 50
A28: Чай с сахаром | B28: 200/15
A30: ДЕНЬ 6/СУББОТА
A31: Кондитерское изделие | B31: 50
A32: Чай с сахаром | B32: 200/15
A34: ДЕНЬ 7/ПОНЕДЕЛЬНИК
A35: Кондитерское изделие | B35: 50
A36: Чай с сахаром | B36: 200/15
A38: ДЕНЬ 8/ВТОРНИК
A39: Кондитерское изделие | B39: 50
A40: Кисель | B40: 200
A42: ДЕНЬ 9/СРЕДА
A43: Кондитерское изделие | B43: 50
A44: Чай с сахаром | B44: 200/15
A46: ДЕНЬ 10/ЧЕТВЕРГ
A47: Кондитерское изделие | B47: 50
A48: Компот из сухофруктов | B48: 200
A50: ДЕНЬ 11/ПЯТНИЦА
A51: Кондитерское изделие | B51: 50
A52: Чай с сахаром | B52: 200/15
A54: ДЕНЬ 12/СУББОТА
A55: Кондитерское изделие | B55: 50
A56: Компот из сухофруктов | B56: 200

Sheet Сличительное меню
A1: День 1 /Понедельник | B1: День 2/ Вторник | C1: День 3/ Среда | D1: День 4/ Четверг | E1: День 5 /Пятница | F1: День 6 /Суббота
A2: Завтрак | B2: Завтрак | C2: Завтрак | D2: Завтрак | E2: Завтрак | F2: Завтрак
A3: Фрукт | B3: Салат из отварной свеклы с горошком | C3: Огурцы свежие | D3: Фрукт | E3: Помидоры свежие | F3: Сыр
A4: Каша геркулесовая молочная | B4: Жаркое из говядины | C4: Картофельное пюре | D4: Каша "дружба" молочная | E4: Макароны отварные | F4: Рис отварной
A5: Перемяч с мясом | B5: Хлеб | C5: Кнели куриные | D5: Ватрушка с творогом | E5: Тефтели | F5: Рыба припущенная
A6: Хлеб | B6: Какао с молоком | C6: Хлеб | D6: Хлеб | E6: Хлеб | F6: Хлеб
A7: Чай сладкий | C7: Чай сладкий | D7: Компот из сухофруктов | E7: Чай сладкий | F7: Компот из яблок
A9: Обед | B9: Обед | C9: Обед | D9: Обед | E9: Обед | F9: Обед
A10: Помидоры свежие | B10: Сыр | C10: Салат из капусты | D10: Салат из моркови | E10: Салат "Витаминный" | F10: Салат из свеклы
A11: Борщ на мкб | B11: Щи на мкб | C11: Суп с вермишелью на мкб | D11: Рассольник на мкб | E11: Суп гороховый | F11: Суп с клецками на мкб
A12: Макароны отварные | B12: Рис отварной | C12: Плов гречневый с говядиной | D12: Рагу овощное с говядиной | E12: Гарнир сложный | F12: Картофельное пюре
A13: Котлета из говядины | B13: Биточки рыбные с соусом | C13: Хлеб | D13: Хлеб | E13: Котлета куриная | F13: Гуляш из говядины
A14: Хлеб | B14: Хлеб | C14: Сок | D14: Чай сладкий | E14: Хлеб | F14: Хлеб
A15: Компот из сухофруктов | B15: Чай сладкий | E15: Кисель | F15: Чай сладкий
A16: 7.4 | B16: 7.4 | C16: 7.4 | D16: 7.4 | E16: 7.4 | F16: 7.4
A17: Кондитерское изделие | B17: Кондитерское изделие | C17: Кондитерское изделие | D17: Кондитерское изделие | E17: Кондитерское изделие | F17: Кондитерское изделие
A18: Чай сладкий | B18: Чай сладкий | C18: Чай сладкий | D18: Компот из сухофруктов | E18: Чай сладкий | F18: Чай сладкий
A20: День 7 /Понедельник | B20: День 8/ Вторник | C20: День 9/ Среда | D20: День 10/ Четверг | E20: День 11 /Пятница | F20: День 12 /Суббота
A21: Завтрак | B21: Завтрак | C21: Завтрак | D21: Завтрак | E21: Завтрак | F21: Завтрак
A22: Каша гречневая рассыпчатая | B22: Сыр | C22: Фрукт | D22: Помидоры свежие | E22: Огурцы свежие | F22: Сыр
A23: Сосиска отварная | B23: Голубцы ленивые | C23: Каша ячневая | D23: Картофельное пюре | E23: Макароны отварные | F23: Каша "дружба"
A24: Хлеб | B24: Хлеб | C24: Пирожок с повидлом | D24: Тефтели | E24: Котлета куриная | F24: Ватрушка с творогом
A25: Чай сладкий | B25: Кисель | C25: Хлеб | D25: Хлеб | E25: Хлеб | F25: Хлеб
A26: Булочка домашняя | C26: Чай сладкий | D26: Компот из сухофруктов | E26: Чай сладкий | F26: Компот из сухофруктов
A28: Обед | B28: Обед | C28: Обед | D28: Обед | E28: Обед | F28: Обед
A29: Салат из капусты | B29: Салат из моркови | C29: Салат из свеклы | D29: Салат "Витаминный" | E29: Салат из моркови с изюмом | F29: Салат из капусты
A30: Суп пшенный на мкб | B30: Борщ на мкб | C30: Суп с клецками на мкб | D30: Суп с вермишелью на мкб | E30: Щи на мкб | F30: Суп гречневый на мкб
A31: Жаркое из говядины | B31: Макароны отварные | C31: Рагу овощное с говядиной | D31: Рис отварной | E31: Пюре гороховое | F31: Жаркое из говядины
A32: Хлеб | B32: Кнели куриные | C32: Хлеб | D32: Рыба припущенная | E32: Гуляш из говядины | F32: Хлеб
A33: Компот из сухофруктов | B33: Хлеб | C33: Сок | D33: Хлеб | E33: Хлеб | F33: Чай сладкий
B34: Какао с молоком | D34: Чай сладкий | E34: Кисель
A35: 7.4 | B35: 7.4 | C35: 7.4 | D35: 7.4 | E35: 7.4 | F35: 7.4
A36: Кондитерское изделие | B36: Кондитерское изделие | C36: Кондитерское изделие | D36: Кондитерское изделие | E36: Кондитерское изделие | F36: Кондитерское изделие
A37: Чай сладкий | B37: Кисель | C37: Чай сладкий | D37: Компот из сухофруктов | E37: Чай сладкий | F37: Компот из сухофруктов

Sheet Сличительное меню с ккал
A2: День 1 /Понедельник | B2: Выход блюд | C2: ккал | E2: День 2/ Вторник | F2: Выход блюд | G2: ккал | I2: День 3/ Среда | J2: Выход блюд | K2: ккал | M2: День 4/ Четверг | N2: Выход блюд | O2: ккал | Q2: День 5 /Пятница | R2: Выход блюд | S2: ккал | U2: День 6 /Суббота | V2: Выход блюд | W2: ккал
A3: Завтрак | C3: мл | D3: ст | E3: Завтрак | G3: мл | H3: ст | I3: Завтрак | K3: мл | L3: ст | M3: Завтрак | O3: мл | P3: ст | Q3: Завтрак | S3: мл | T3: ст | U3: Завтрак | W3: мл | X3: ст
A4: Фрукт | B4: 200 | C4: 104 | D4: 104 | E4: Салат из отварной свеклы с горошком | F4: 60/100 | G4: 55.68 | H4: 92.8 | I4: Огурцы свежие | J4: 60/100 | K4: 8.4 | L4: 14 | M4: Фрукт | N4: 200 | O4: 104 | P4: 104 | Q4: Помидоры свежие | R4: 60/100 | S4: 10.8 | T4: 18 | U4: Сыр | V4: 15 | W4: 54.75 | X4: 54.75
A5: Каша геркулесовая | B5: 200 | C5: 206 | D5: 206 | E5: Жаркое из говядины | F5: 200/220 | G5: 301 | H5: 331 | I5: Картофельное пюре | J5: 150/180 | K5: 170 | L5: 204 | M5: Каша "дружба" | N5: 200 | O5: 232 | P5: 232 | Q5: Макароны отварные | R5: 150/180 | S5: 224 | T5: 268.8 | U5: Рис отварной | V5: 150/180 | W5: 220 | X5: 264
A6: Перемяч с мясом | B6: 70 | C6: 192 | D6: 192 | E6: Хлеб | F6: 40/60 | G6: 120 | H6: 180 | I6: Кнели куриные | J6: 100 | K6: 228 | L6: 228 | M6: Ватрушка с творогом | N6: 70 | O6: 208 | P6: 208 | Q6: Тефтели | R6: 100 | S6: 204 | T6: 204 | U6: Рыба припущенная | V6: 100/50 | W6: 174 | X6: 174
A7: Хлеб | B7: 40/60 | C7: 120 | D7: 180 | E7: Какао с молоком | F7: 200 | G7: 117.12 | H7: 117.12 | I7: Хлеб | J7: 40/60 | K7: 120 | L7: 180 | M7: Хлеб | N7: 40/60 | O7: 120 | P7: 180 | Q7: Хлеб | R7: 40/60 | S7: 120 | T7: 180 | U7: Хлеб | V7: 40/60 | W7: 120 | X7: 180
A8: Чай сладкий | B8: 200 | C8: 61.29 | D8: 61.29 | I8: Чай сладкий | J8: 200 | K8: 61.29 | L8: 61.29 | M8: Компот из сухофруктов | N8: 200 | O8: 70.53 | P8: 70.53 | Q8: Чай сладкий | R8: 200 | S8: 61.29 | T8: 61.29 | U8: Компот из яблок | V8: 200 | W8: 76.8 | X8: 76.8
A9: Итого за завтрак | C9: =C4+C5+C6+C7+C8 -> 683.29 | D9: =D4+D5+D6+D7+D8 -> 743.29 | G9: =G4+G5+G6+G7 -> 593.8 | H9: =H4+H5+H6+H7 -> 720.92 | K9: =K4+K5+K6+K7+K8 -> 587.69 | L9: =L4+L5+L6+L7+L8 -> 687.29 | O9: =O4+O5+O6+O7+O8 -> 734.53 | P9: =P4+P5+P6+P7+P8 -> 794.53 | S9: =S4+S5+S6+S7+S8 -> 620.09 | T9: =T4+T5+T6+T7+T8 -> 732.09 | W9: =W4+W5+W6+W7+W8 -> 645.55 | X9: =X4+X5+X6+X7+X8 -> 749.55
A10: Обед | E10: Обед | I10: Обед | M10: Обед | Q10: Обед | U10: Обед
A11: Помидоры свежие | B11: 60/100 | C11: 10.8 | D11: 18 | E11: Сыр | F11: 15 | G11: 54.75 | H11: 54.75 | I11: Салат из капусты | J11: 60/100 | K11: 66.6 | L11: 111 | M11: Салат из моркови | N11: 60/100 | O11: 77.06 | P11: 128.4 | Q11: Салат "Витаминный" | R11: 60/100 | S11: 63.6 | T11: 106 | U11: Салат из свеклы | V11: 60/100 | W11: 53.82 | X11: 89.7
A12: Борщ на мкб | B12: 250 | C12: 150 | D12: 150 | E12: Щи на мкб | F12: 250 | G12: 155.7 | H12: 155.7 | I12: Суп с вермишелью на мкб | J12: 250 | K12: 200 | L12: 200 | M12: Рассольник на мкб | N12: 250 | O12: 171.3 | P12: 171.3 | Q12: Суп гороховый | R12: 250 | S12: 153.64 | T12: 153.6 | U12: Суп с клецками на мкб | V12: 250 | W12: 206 | X12: 206
A13: Макароны отварные | B13: 150/180 | C13: 224 | D13: 268.8 | E13: Рис отварной | F13: 150/180 | G13: 220 | H13: 264 | I13: Плов гречневый с говядиной | J13: 200/220 | K13: 354 | L13: 389.4 | M13: Рагу овощное с говядиной | N13: 200/220 | O13: 246 | P13: 270.6 | Q13: Гарнир сложный | R13: 150/180 | S13: 170.6 | T13: 194.7 | U13: Картофельное пюре | V13: 150/180 | W13: 170 | X13: 204
A14: Котлета из говядины | B14: 100 | C14: 236 | D14: 236 | E14: Биточки рыбные с соусом | F14: 100 | G14: 198 | H14: 198 | I14: Хлеб | J14: 40/60 | K14: 120 | L14: 180 | M14: Хлеб | N14: 40/60 | O14: 120 | P14: 180 | Q14: Котлета куриная | R14: 100 | S14: 202 | T14: 202 | U14: Гуляш из говядины | V14: 100 | W14: 167 | X14: 167
A15: Хлеб | B15: 40/60 | C15: 120 | D15: 180 | E15: Хлеб | F15: 40/60 | G15: 120 | H15: 180 | I15: Сок | J15: 200 | K15: 76.8 | L15: 76.8 | M15: Чай сладкий | N15: 200 | O15: 61.29 | P15: 61.29 | Q15: Хлеб | R15: 40/60 | S15: 120 | T15: 180 | U15: Хлеб | V15: 40/60 | W15: 120 | X15: 180
A16: Компот из сухофруктов | B16: 200 | C16: 70.53 | D16: 70.53 | E16: Чай сладкий | F16: 200 | G16: 61.29 | H16: 61.29 | Q16: Кисель | R16: 200 | S16: 118 | T16: 118 | U16: Чай сладкий | V16: 200 | W16: 61.29 | X16: 61.29
A17: Итого за обед: | C17: =C11+C12+C13+C14+C15+C16 -> 811.33 | D17: =D11+D12+D13+D14+D15+D16 -> 923.33 | G17: =G11+G12+G13+G14+G15+G16 -> 809.74 | H17: =H11+H12+H13+H14+H15+H16 -> 913.74 | K17: =K11+K12+K13+K14+K15 -> 817.4 | L17: =L11+L12+L13+L14+L15 -> 957.2 | O17: =O11+O12+O13+O14+O15 -> 675.65 | P17: =P11+P12+P13+P14+P15 -> 811.59 | S17: =S11+S12+S13+S14+S15+S16 -> 827.84 | T17: =T11+T12+T13+T14+T15+T16 -> 954.3 | W17: =W11+W12+W13+W14+W15+W16 -> 778.11 | X17: =X11+X12+X13+X14+X15+X16 -> 907.99
A18: Итого за день: | C18: =C17+C9 -> 1494.62 | D18: =D17+D9 -> 1666.62 | G18: =G9+G17 -> 1403.54 | H18: =H9+H17 -> 1634.66 | K18: =K9+K17 -> 1405.09 | L18: =L9+L17 -> 1644.49 | O18: =O9+O17 -> 1410.18 | P18: =P9+P17 -> 1606.12 | S18: =S17+S9 -> 1447.93 | T18: =T17+T9 -> 1686.39 | W18: =W17+W9 -> 1423.66 | X18: =X17+X9 -> 1657.54
A19: % ккал от сут. нормы | C19: 63,6% | D19: 61,4% | G19: 60% | H19: 60% | K19: 60% | L19: 60,5% | O19: 60% | P19: 60% | S19: 61% | T19: 62,5% | W19: 62% | X19: 62%
A20: 7.4 | E20: 7.4 | I20: 7.4 | M20: 7.4 | Q20: 7.4 | U20: 7.4
A21: Кондитерское изделие | B21: 50 | E21: Кондитерское изделие | F21: 50 | I21: Кондитерское изделие | J21: 50 | M21: Кондитерское изделие | N21: 50 | Q21: Кондитерское изделие | R21: 50 | U21: Кондитерское изделие | V21: 50
A22: Чай сладкий | B22: 200 | E22: Кисель | F22: 200 | I22: Чай сладкий | J22: 200 | M22: Компот из сухофруктов | N22: 200 | Q22: Чай сладкий | R22: 200 | U22: Сок | V22: 200
A25: День 7 /Понедельник | B25: Выход блюд | C25: ккал | E25: День 8/ Вторник | F25: Выход блюд | G25: ккал | I25: День 9/ Среда | J25: Выход блюд | K25: ккал | M25: День 10/ Четверг | N25: Выход блюд | O25: ккал | Q25: День 11 /Пятница | R25: Выход блюд | S25: ккал | U25: День 12 /Суббота | V25: Выход блюд | W25: ккал
A26: Завтрак | C26: мл | D26: ст | E26: Завтрак | G26: мл | H26: ст | I26: Завтрак | K26: мл | L26: ст | M26: Завтрак | O26: мл | P26: ст | Q26: Завтрак | S26: мл | T26: ст | U26: Завтрак | W26: мл | X26: ст
A27: Булочка домашняя | B27: 45 | C27: 153 | D27: 153 | E27: Сыр | F27: 15 | G27: 54.75 | H27: 54.75 | I27: Фрукт | J27: 200 | K27: 104 | L27: 104 | M27: Помидоры свежие | N27: 60/100 | O27: 10.8 | P27: 18 | Q27: Огурцы свежие | R27: 60/100 | S27: 8.4 | T27: 14 | U27: Сыр | V27: 15 | W27: 54.75 | X27: 54.75
A28: Каша гречневая рассыпчатая | B28: 150/180 | C28: 230 | D28: 276 | E28: Голубцы ленивые | F28: 200/220 | G28: 246 | H28: 270.6 | I28: Каша ячневая | J28: 200 | K28: 206 | L28: 206 | M28: Картофельное пюре | N28: 150/180 | O28: 170 | P28: 204 | Q28: Макароны отварные | R28: 150/180 | S28: 224 | T28: 268.8 | U28: Каша "дружба" | V28: 200 | W28: 232 | X28: 232
A29: Сосиска отварная | B29: 100 | C29: 191 | D29: 191 | E29: Хлеб | F29: 40/60 | G29: 120 | H29: 180 | I29: Пирожок с повидлом | J29: 70 | K29: 207 | L29: 207 | M29: Тефтели | N29: 100 | O29: 204 | P29: 204 | Q29: Котлета куриная | R29: 100 | S29: 202 | T29: 202 | U29: Ватрушка с творогом | V29: 70 | W29: 208 | X29: 208
A30: Хлеб | B30: 40/60 | C30: 120 | D30: 180 | E30: Кисель | F30: 200 | G30: 118 | H30: 118 | I30: Хлеб | J30: 40/60 | K30: 120 | L30: 180 | M30: Хлеб | N30: 40/60 | O30: 120 | P30: 180 | Q30: Хлеб | R30: 40/60 | S30: 120 | T30: 180 | U30: Хлеб | V30: 40/60 | W30: 120 | X30: 180
A31: Чай сладкий | B31: 200 | C31: 61.29 | D31: 61.29 | I31: Чай сладкий | J31: 200 | K31: 61.29 | L31: 61.29 | M31: Компот из сухофруктов | N31: 200 | O31: 70.53 | P31: 70.53 | Q31: Чай сладкий | R31: 200 | S31: 61.29 | T31: 61.29 | U31: Компот из сухофруктов | V31: 200 | W31: 70.53 | X31: 70.53
A32: Итого за завтрак | C32: =C27+C28+C29+C30 -> 694 | D32: =D27+D28+D29+D30 -> 800 | G32: =G27+G28+G29+G30 -> 538.75 | H32: =H27+H28+H29+H30 -> 623.35 | K32: =K27+K28+K29+K30+K31 -> 698.29 | L32: =L27+L28+L29+L30+L31 -> 758.29 | O32: =O27+O28+O29+O30+O31 -> 575.33 | P32: =P27+P28+P29+P30+P31 -> 676.53 | S32: =S27+S28+S29+S30+S31 -> 615.69 | T32: =T27+T28+T29+T30+T31 -> 726.09 | W32: =W27+W28+W29+W30+W31 -> 685.28 | X32: =X27+X28+X29+X30+X31 -> 745.28
A33: Обед | E33: Обед | I33: Обед | M33: Обед | Q33: Обед | U33: Обед
A34: Салат из капусты | B34: 60/100 | C34: 66.6 | D34: 111 | E34: Салат из моркови | F34: 60/100 | G34: 77.06 | H34: 128.4 | I34: Салат из свеклы | J34: 60/100 | K34: 53.82 | L34: 89.7 | M34: Салат "Витаминный" | N34: 60/100 | O34: 63.6 | P34: 106 | Q34: Салат из моркови с изюмом | R34: 60/100 | S34: 49.8 | T34: 83 | U34: Салат из капусты | V34: 60/100 | W34: 66.6 | X34: 111
A35: Суп пшенный на мкб | B35: 250 | C35: 192 | D35: 192 | E35: Борщ на мкб | F35: 250 | G35: 150 | H35: 150 | I35: Суп с клецками на мкб | J35: 250 | K35: 206 | L35: 206 | M35: Суп с вермишелью на мкб | N35: 250 | O35: 200 | P35: 200 | Q35: Щи на мкб | R35: 250 | S35: 155.7 | T35: 155.7 | U35: Суп гречневый на мкб | V35: 250 | W35: 188 | X35: 188
A36: Жаркое из говядины | B36: 200/220 | C36: 301 | D36: 331 | E36: Макароны отварные | F36: 150/180 | G36: 224 | H36: 268.8 | I36: Рагу овощное с говядиной | J36: 200/220 | K36: 246 | L36: 270.6 | M36: Рис отварной | N36: 150/180 | O36: 220 | P36: 264 | Q36: Пюре гороховое | R36: 150/180 | S36: 205 | T36: 228 | U36: Жаркое из говядины | V36: 200/220 | W36: 301 | X36: 331
A37: Хлеб | B37: 40/60 | C37: 120 | D37: 180 | E37: Кнели куриные | F37: 100 | G37: 228 | H37: 228 | I37: Хлеб | J37: 40/60 | K37: 120 | L37: 180 | M37: Рыба припущенная | N37: 100/50 | O37: 174 | P37: 174 | Q37: Гуляш из говядины | R37: 100 | S37: 167 | T37: 167 | U37: Хлеб | V37: 40/60 | W37: 120 | X37: 180
A38: Компот из сухофруктов | B38: 200 | C38: 70.53 | D38: 70.53 | E38: Хлеб | F38: 40/60 | G38: 120 | H38: 180 | I38: Сок | J38: 200 | K38: 76.8 | L38: 76.8 | M38: Хлеб | N38: 40/60 | O38: 120 | P38: 180 | Q38: Хлеб | R38: 40/60 | S38: 120 | T38: 180 | U38: Чай сладкий | V38: 200 | W38: 61.29 | X38: 61.29
E39: Какао с молоком | F39: 200 | G39: 117.12 | H39: 117.12 | M39: Чай сладкий | N39: 200 | O39: 61.29 | P39: 61.29 | Q39: Кисель | R39: 200 | S39: 118 | T39: 118
A40: Итого за обед: | C40: =C34+C35+C36+C37+C38 -> 750.13 | D40: =D34+D35+D36+D37+D38 -> 884.53 | G40: =G34+G35+G36+G37+G38+G39 -> 916.18 | H40: =H34+H35+H36+H37+H38+H39 -> 1072.32 | K40: =K34+K35+K36+K37+K38 -> 702.62 | L40: 873 | O40: =O34+O35+O36+O37+O38+O39 -> 838.89 | P40: =P34+P35+P36+P37+P38+P39 -> 985.29 | S40: =S34+S35+S36+S37+S38+S39 -> 815.5 | T40: =T34+T35+T36+T37+T38+T39 -> 931.7 | W40: =W34+W35+W36+W37+W38 -> 736.89 | X40: =X34+X35+X36+X37+X38 -> 871.29
A41: Итого за день: | C41: =C40+C32 -> 1444.13 | D41: =D40+D32 -> 1684.53 | G41: 1400 | H41: =H32+H40 -> 1695.67 | K41: =K32+K40 -> 1400.91 | L41: =L32+L40 -> 1631.29 | O41: =O32+O40 -> 1414.22 | P41: =P32+P40 -> 1661.82 | S41: =S40+S32 -> 1431.19 | T41: =T40+T32 -> 1657.79 | W41: =W40+W32 -> 1422.17 | X41: =X40+X32 -> 1616.57
A42: % ккал от сут. нормы | C42: 64% | D42: 64% | G42: 60% | H42: 60,4% | K42: 60% | L42: 60% | O42: 60% | P42: 61% | S42: 61% | T42: 61% | W42: 60% | X42: 60%
A43: 7.4 | E43: 7.4 | I43: 7.4 | M43: 7.4 | Q43: 7.4 | U43: 7.4
A44: Кондитерское изделие | B44: 50 | E44: Кондитерское изделие | F44: 50 | I44: Кондитерское изделие | J44: 50 | M44: Кондитерское изделие | N44: 50 | Q44: Кондитерское изделие | R44: 50 | U44: Кондитерское изделие | V44: 50
A45: Чай сладкий | B45: 200 | E45: Кисель | F45: 200 | I45: Чай сладкий | J45: 200 | M45: Компот из сухофруктов | N45: 200 | Q45: Чай сладкий | R45: 200 | U45: Компот из сухофруктов | V45: 200

Sheet Норма СанПиН
A2: Рекомендуемая масса порций блюд (в граммах)
A3: для обущающихся различного возраста
A5: Наименование блюд | B5: Масса порций в грамах для обущающихся двух возрастных групп
B6: с 7 до 11 лет | C6: с 11 и старше
A7: Каша, овощное, яичное, творожное блюдо, мясное блюдо | B7: 150-200 | C7: 200-250
A8: Напитки (чай, какао, сок, компот, молоко, кефир и др.) | B8: 200 | C8: 200
A9: Салат | B9: 60-100 | C9: 100-150
A10: Суп | B10: 200-250 | C10: 250-300
A11: Мясо, котлета | B11: 80-120 | C11: 100-120
A12: Гарнир | B12: 150-200 | C12: 180-230
A13: Фрукты | B13: 100 | C13: 100
A16: Потребность в пищевых веществах и энергии в сутки
A18: Название пищевых веществ | B18: Усреднённая потребность в пищевых веществах для обущающихся двух возрастных групп
B19: с 7 до 11 лет | C19: с 11 и старше
A20: Белки | B20: 77 | C20: 90
A21: Жиры | B21: 79 | C21: 92
A22: Углеводы | B22: 335 | C22: 383
A23: Ккал | B23: 2350 | C23: 2713
A25: Завтрак 25 % от суточной потребности в пищевых веществах и энергии в сутки (пинкт 6.14)
A26: Состав: Закуска, горячее блюдо, горячий напиток, хлеб.
A28: Название пищевых веществ | B28: Ккал за завтрак 25 %
B29: с 7 до 11 лет | C29: с 11 и старше
A30: белки | B30: 19.25 | C30: 22.5
A31: жиры | B31: 19.75 | C31: 23
A32: углеводы | B32: 83.75 | C32: 95.75
A33: ккал | B33: 587.5 | C33: 678.25
A35: Обед: 35 % от суточной потребности в пищевых веществах и энергии в сутки (пинкт 6.14)
A36: Состав: закуска, первое, второе и сладкое блюдо, чай.
A38: Название пищевых веществ | B38: Ккал за обед 35 %
B39: с 7 до 11 лет | C39: с 11 и старше
A40: белки | B40: 26.95 | C40: 31.5
A41: жиры | B41: 27.65 | C41: 32.2
A42: углеводы | B42: 117.25 | C42: 134.05
A43: ккал | B43: 822.5 | C43: 949.55
A45: Общее 60 % за завтрак и обед
A47: Название пищевых веществ | B47: Ккал за завтрак и обед 60 %
B48: с 7 до 11 лет | C48: с 11 и старше
A49: белки | B49: =B40+B30 -> 46.2 | C49: =C40+C30 -> 54
A50: белки с учётом+-5% | B50: 43,89-48,51 | C50: 51,3-56,7
A51: жиры | B51: =B31+B41 -> 47.4 | C51: 55.2
A52: жиры с учётом +-5% | B52: 45,03-49,77 | C52: 52,44-57,96
A53: углеводы | B53: =B32+B42 -> 201 | C53: =C32+C42 -> 229.8
A54: углеводы с учётом +-5% | B54: 190,95-211,05 | C54: 218,30-241,29
A55: ккал | B55: =B33+B43 -> 1410 | C55: =C33+C43 -> 1627.8
A56: ккал с учётом +-5% | B56: 1339,50-1480,5 | C56: 1546,41-1709,19

Sheet Ведомость питания
A2: Младшая группа | B2: День 1 | C2: День 2 | D2: День 3 | E2: День 4 | F2: День 5 | G2: День 6 | H2: День 7 | I2: День 8 | J2: День 9 | K2: День 10 | L2: День 11 | M2: День 12 | N2: Итого | O2: Среднесуточные данные | P2: Норма 60 %
A3: Хлеб ржаной | B3: 40 | C3: 40 | D3: 40 | E3: 40 | F3: 40 | G3: 40 | H3: 40 | I3: 40 | J3: 40 | K3: 40 | L3: 40 | M3: 40 | N3: =B3+C3+D3+E3+F3+G3+H3+I3+J3+K3+L3+M3 -> 480 | O3: =N3/12 -> 40 | P3: 48
A4: Хлеб пшеничный | B4: 58 | C4: 52 | D4: 40 | E4: 40 | F4: 45 | G4: 40 | H4: 40 | I4: 40 | J4: 40 | K4: 40 | L4: 45 | M4: 40 | N4: =B4+C4+D4+E4+F4+G4+H4+I4+J4+K4+L4+M4 -> 520 | O4: 43.33 | P4: 90
A5: Мука | B5: 41 | C5: 8 | E5: 44 | F5: 7 | G5: 37 | H5: 32 | J5: 69 | K5: 9 | L5: 9 | M5: 35 | N5: 291 | O5: =N5/12 -> 24.25 | P5: 9
A6: Крупы, бобовые | B6: 30 | C6: 52 | D6: 56 | E6: 51 | F6: 12 | G6: 52 | H6: 64 | I6: 17 | J6: 30 | K6: 60 | L6: 50 | M6: 48 | N6: 522 | O6: 43.5 | P6: 27
A7: Макаронные изделия | B7: 52 | D7: 26 | F7: 52 | I7: 52 | K7: 26 | L7: 52 | N7: 260 | O7: 21.66 | P7: 9
A8: Картофель | B8: 35 | C8: 202 | D8: 307 | E8: 196 | F8: 232 | G8: 307 | H8: 277 | I8: 35 | J8: 155 | K8: 307 | L8: 50 | M8: 277 | N8: 2380 | O8: 198.3 | P8: 150
A9: Овощи свежие | B9: 179 | C9: 221 | D9: 182 | E9: 220 | F9: 239 | G9: 126 | H9: 135 | I9: 350 | J9: 208 | K9: 167 | L9: 240 | M9: 135 | N9: 2402 | O9: 200.1 | P9: 210
A10: Фрукты свежие | B10: 200 | E10: 200 | F10: 18 | G10: 51 | J10: 200 | K10: 18 | N10: 687 | O10: 57.25 | P10: 120
A11: Фрукты сухие | B11: 18 | E11: 18 | H11: 18 | K11: 18 | L11: 7 | M11: 18 | N11: 97 | O11: 8.08 | P11: 9
A12: Сок | D12: 200 | J12: 200 | N12: 400 | O12: 33.33 | P12: 0.12
A13: Мясо на кости | B13: 157 | C13: 135 | D13: 119 | E13: 211 | F13: 32 | G13: 134 | H13: 134 | I13: 96 | J13: 125 | K13: 118 | L13: 134 | M13: 137 | N13: 1532 | O13: 127.6 | P13: 57
A14: Куры | D14: 133 | F14: 128 | I14: 133 | L14: 128 | N14: 522 | O14: 43.5 | P14: 31
A15: Рыба | C15: 128 | G15: 165 | K15: 165 | N15: 458 | O15: 38.16 | P15: 36
A16: Колбасные изделия | H16: 104 | N16: 104 | O16: 8.66 | P16: 9
A17: Молоко | B17: 150 | C17: 150 | D17: 24 | E17: 150 | F17: 26 | G17: 24 | H17: 10 | I17: 150 | J17: 150 | K17: 24 | L17: 16 | M17: 150 | N17: 1024 | O17: 85.33 | P17: 180
A18: Кисломолочные | N18: 0 | O18: 0 | P18: 90
A19: Творог | E19: 18 | M19: 18 | N19: 36 | O19: 3 | P19: 30
A20: Сыр | C20: 15 | G20: 15 | I20: 15 | M20: 15 | N20: 60 | O20: 5 | P20: 6
A21: Сметана | B21: 10 | C21: 10 | D21: 10 | E21: 10 | G21: 20 | H21: 10 | I21: 10 | J21: 10 | K21: 20 | L21: 10 | M21: 10 | N21: 130 | O21: 10.83 | P21: 6
A22: Масло сливочное | B22: 18 | C22: 14 | D22: 11 | E22: 22 | F22: 13 | G22: 20 | H22: 8 | I22: 11 | J22: 15 | K22: 27 | L22: 13 | M22: 10 | N22: 182 | O22: 15.16 | P22: 18
A23: Масло растительное | B23: 7 | C23: 9 | D23: 17 | E23: 13 | F23: 12 | G23: 16 | H23: 19 | I23: 12 | J23: 13 | K23: 12 | L23: 14 | M23: 19 | N23: 163 | O23: 13.58 | P23: 9
A24: Яйцо | B24: 1 | E24: 3 | G24: 6 | H24: 2 | J24: 7 | L24: 2 | M24: 4 | N24: 25 | O24: 2.08 | P24: 24
A25: Сахарный песок | B25: 39 | C25: 31 | D25: 18 | E25: 46 | F25: 34 | G25: 30 | H25: 37 | I25: 36 | J25: 21 | K25: 33 | L25: 32 | M25: 46 | N25: 403 | O25: 33.58 | P25: 24
A26: Кондитерское изделие | N26: 0 | O26: 0
A27: Чай | B27: 0.7 | C27: 0.7 | D27: 0.7 | E27: 0.7 | F27: 0.7 | G27: 0.7 | H27: 0.7 | I27: 0 | J27: 0.7 | K27: 0.7 | L27: 0.7 | M27: 0.7 | N27: 7.7 | O27: 0.64 | P27: 0.24
A28: Какао | C28: 2 | I28: 2 | N28: 4 | O28: 0.33 | P28: 0.72
A29: Дрожжи | B29: 1 | E29: 1 | H29: 1 | J29: 1 | M29: 1 | N29: 5 | O29: 0.42 | P29: 0.6
A30: Соль | B30: 8 | C30: 7 | D30: 6 | E30: 6 | F30: 8 | G30: 10 | H30: 7 | I30: 7 | J30: 6 | K30: 8 | L30: 9 | M30: 6 | N30: 88 | O30: 7.35 | P30: 3
A31: томатная паста | B31: 8 | C31: 9 | E31: 10 | F31: 3 | G31: 10 | H31: 4 | I31: 8 | J31: 6 | L31: 15 | M31: 4 | N31: 77 | O31: 6.45
A32: кисель | C32: 0 | F32: 24 | I32: 24 | K32: 24 | N32: 72 | O32: 6
A33: повидло | J33: 25 | N33: 25 | O33: 2.08
A36: Страшая группа | B36: День 1 | C36: День 2 | D36: День 3 | E36: День 4 | F36: День 5 | G36: День 6 | H36: День 7 | I36: День 8 | J36: День 9 | K36: День 10 | L36: День 11 | M36: День 12 | N36: Итого | O36: Среднесуточные данные | P36: Норма 60 %
A37: Хлеб ржаной | B37: 60 | C37: 60 | D37: 60 | E37: 60 | F37: 60 | G37: 60 | H37: 60 | I37: 60 | J37: 60 | K37: 60 | L37: 60 | M37: 60 | N37: =B37+C37+D37+E37+F37+G37+H37+I37+J37+K37+L37+M37 -> 720 | O37: =N37/12 -> 60 | P37: 72
A38: Хлеб пшеничный | B38: 78 | C38: 72 | D38: 60 | E38: 60 | F38: 65 | G38: 60 | H38: 60 | I38: 60 | J38: 60 | K38: 60 | L38: 65 | M38: 60 | N38: =B38+C38+D38+E38+F38+G38+H38+I38+J38+K38+L38+M38 -> 760 | O38: 63.33 | P38: 120
A39: Мука | B39: 41 | C39: 8 | E39: 38 | F39: 1 | G39: 37 | H39: 32 | J39: 70 | K39: 9 | L39: 9 | M39: 35 | N39: 280 | O39: 23.33 | P39: 12
A40: Крупы, бобовые | B40: 30 | C40: 63 | D40: 61 | E40: 51 | F40: 18 | G40: 63 | H40: 75 | I40: 18 | J40: 30 | K40: 71 | L40: 60 | M40: 48 | N40: 588 | O40: =N40/12 -> 49 | P40: 30
A41: Макаронные изделия | B41: 65 | D41: 26 | F41: 65 | I41: 65 | K41: 26 | L41: 65 | N41: 312 | O41: 26 | P41: 12
A42: Картофель | B42: 35 | C42: 217 | D42: 352 | E42: 203 | F42: 262 | G42: 352 | H42: 292 | I42: 35 | J42: 162 | K42: 352 | L42: 50 | M42: 292 | N42: 2604 | O42: 217 | P42: 150
A43: Овощи свежие | B43: 224 | C43: 271 | D43: 274 | E43: 281 | F43: 328 | G43: 172 | H43: 186 | I43: 416 | J43: 266 | K43: 240 | L43: 325 | M43: 186 | N43: 3169 | O43: 264.08 | P43: 240
A44: Фрукты свежие | B44: 200 | E44: 200 | F44: 30 | G44: 51 | J44: 200 | K44: 30 | N44: 711 | O44: 59.25 | P44: 120
A45: Фрукты сухие | B45: 18 | E45: 18 | H45: 18 | K45: 18 | L45: 12 | M45: 18 | N45: 102 | O45: 8.5 | P45: 12
A46: Сок | D46: 200 | J46: 200 | N46: 400 | O46: 33.33 | P46: 120
A47: Мясо на кости | B47: 157 | C47: 145 | D47: 128 | E47: 134 | F47: 118 | G47: 134 | H47: 145 | I47: 102 | J47: 134 | K47: 118 | L47: 134 | M47: 145 | N47: 1594 | O47: 132.8 | P47: 63
A48: Куры | D48: 133 | F48: 128 | I48: 133 | L48: 128 | N48: 522 | O48: 43.5 | P48: 45.6
A49: Рыба | C49: 128 | G49: 165 | K49: 165 | N49: 458 | O49: 38.16 | P49: 48
A50: Колбасные изделия | H50: 104 | N50: 104 | O50: 8.66 | P50: 12
A51: Молоко | B51: 150 | C51: 150 | D51: 29 | E51: 150 | F51: 29 | G51: 29 | H51: 10 | I51: 150 | J51: 150 | K51: 29 | L51: 10 | M51: 150 | N51: 1036 | O51: 86.33 | P51: 180
A52: Кисломолочные | N52: 0 | O52: 0 | P52: 108
A53: Творог | E53: 18 | M53: 18 | N53: 36 | O53: 3 | P53: 36
A54: Сыр | C54: 15 | G54: 15 | I54: 15 | M54: 15 | N54: 60 | O54: 5 | P54: 7.2
A55: Сметана | B55: 10 | C55: 10 | D55: 10 | E55: 10 | G55: 20 | H55: 10 | I55: 10 | J55: 10 | K55: 20 | L55: 10 | M55: 10 | N55: 130 | O55: 10.83 | P55: 6
A56: Масло сливочное | B56: 20 | C56: 16 | D56: 13 | E56: 16 | F56: 23 | G56: 24 | H56: 10 | I56: 13 | J56: 16 | K56: 31 | L56: 16 | M56: 10 | N56: 208 | O56: 17.33 | P56: 3
A57: Масло растительное | B57: 8 | C57: 13 | D57: 22 | E57: 17 | F57: 16 | G57: 20 | H57: 23 | I57: 17 | J57: 17 | K57: 16 | L57: 20 | M57: 20 | N57: 209 | O57: 17.41 | P57: 10.8
A58: Яйцо | B58: 1 | C58: 5 | E58: 3 | F58: 4 | G58: 6 | H58: 2 | J58: 7 | L58: 2 | M58: 4 | N58: 34 | O58: 2.83 | P58: 24
A59: Сахарный песок | B59: 39 | C59: 32 | D59: 21 | E59: 47 | F59: 36 | G59: 30 | H59: 40 | I59: 37 | J59: 21 | K59: 35 | L59: 34 | M59: 49 | N59: 421 | O59: 35.08 | P59: 27
A60: Кондитерское изделие | N60: 0 | O60: 0 | P60: 9
A61: Чай | B61: 0.7 | C61: 0.7 | D61: 0.7 | E61: 0.7 | F61: 0.7 | G61: 0.7 | H61: 0.7 | I61: 0 | J61: 0.7 | K61: 0.7 | L61: 0.7 | M61: 0.7 | N61: 7.7 | O61: 0.64 | P61: 0.24
A62: Какао | C62: 2 | I62: 2 | N62: 4 | O62: 0.33 | P62: 0.72
A63: Дрожжи | B63: 1 | E63: 1 | H63: 1 | J63: 1 | M63: 1 | N63: 5 | O63: 0.42 | P63: 1.2
A64: Соль | B64: 8 | C64: 7 | D64: 6 | E64: 6 | F64: 8 | G64: 10 | H64: 7 | I64: 7 | J64: 6 | K64: 8 | L64: 10 | M64: 6 | N64: 89 | O64: 7.41 | P64: 4.2
A65: томатная паста | B65: 8 | C65: 9 | E65: 11 | F65: 4 | G65: 10 | H65: 4 | I65: 8 | J65: 7 | L65: 15 | M65: 4 | N65: 80 | O65: 6.66
A66: кисель | F66: 24 | I66: 24 | L66: 24 | N66: 72 | O66: 6
A67: повидло | J67: 25 | N67: 25 | O67: 2.08
